Workbook

Sheet Data summary
A1: RUN # 1&2 | B1: Rate classes | C1: Weather station used for normalization | H1: Test Year
A2: 1 | B2: Residential | C2: Toronto Pearson | H2: 2004
A3: 2 | B3: GS>50 <200kW
A4: 3 | B4: Street Lighting
A5: 4 | B5: Sentinel lighting
A6: 5 | B6: GS > 200 kW < 1000 kW
A7: 6 | B7: Intermediate Use 1000 - 5000 kW
A8: 7 | B8: Large user > 5000 kW
A9: 8 | B9: GS < 50
A10: 9 | B10: USL
A13: Monthly kWh by class (with actual weather) | C13: Jan | D13: Feb | E13: Mar | F13: Apr | G13: May | H13: Jun | I13: Jul | J13: Aug | K13: Sep | L13: Oct | M13: Nov | N13: Dec | O13: TOTAL
A14: 1 | B14: Residential | C14: 57330031.86 | D14: 45753519.44 | E14: 44814532.42 | F14: 37422262.83 | G14: 34534042 | H14: 33228217.1 | I14: 41019185.88 | J14: 37671623.06 | K14: 33595264.78 | L14: 33745458.32 | M14: 38609765.22 | N14: 49486213.75 | O14: 487210116.7
A15: 2 | B15: GS>50 <200kW | C15: 33614679.84 | D15: 31386904.63 | E15: 28331859.08 | F15: 25198344.99 | G15: 23413256.52 | H15: 24184786.24 | I15: 23757343.5 | J15: 25675379.46 | K15: 25015790.14 | L15: 24371838.55 | M15: 25289072.74 | N15: 30522841.28 | O15: 320762097
A16: 3 | B16: Street Lighting | C16: 925796.7392 | D16: 803272.7634 | E16: 767419.3139 | F16: 649269.6761 | G16: 588869.2283 | H16: 529535.2346 | I16: 568851.3602 | J16: 641313.3391 | K16: 710262.7297 | L16: 835482.2342 | M16: 896440.2058 | N16: 971527.0994 | O16: 8888039.924
A17: 4 | B17: Sentinel lighting | C17: 4241.375798 | D17: 3680.053638 | E17: 3515.797331 | F17: 2974.515435 | G17: 2697.80135 | H17: 2425.973038 | I17: 2606.092989 | J17: 2938.064869 | K17: 3253.944439 | L17: 3827.615693 | M17: 4106.883976 | N17: 4450.881443 | O17: 40719
A18: 5 | B18: GS > 200 kW < 1000 kW | C18: 2759680.197 | D18: 2423280.528 | E18: 2549583.044 | F18: 2446834.554 | G18: 2533506.588 | H18: 2538197.449 | I18: 2806510.261 | J18: 2654981.598 | K18: 2467598.7 | L18: 2384176.758 | M18: 2317586.571 | N18: 2512514.931 | O18: 30394451.18
A19: 6 | B19: Intermediate Use 1000 - 5000 kW | C19: 6127129.878 | D19: 5628471.447 | E19: 5837516.129 | F19: 5546430.723 | G19: 5627384.794 | H19: 5730250 | I19: 6418931.943 | J19: 6303008.831 | K19: 6635632.001 | L19: 6408590.938 | M19: 6489219.935 | N19: 6567560.907 | O19: 73320127.53
A20: 7 | B20: Large user > 5000 kW | C20: 7570627.332 | D20: 7372011.441 | E20: 7872115.073 | F20: 7029672.966 | G20: 7345177.651 | H20: 7805933.697 | I20: 4797729.115 | J20: 7759644.892 | K20: 7000305.907 | L20: 7432702.255 | M20: 7684410.959 | N20: 6231928.021 | O20: 85902259.31
A21: 8 | B21: GS < 50 | C21: 16620894.5 | D21: 13746583.81 | E21: 13275992.92 | F21: 11426774.72 | G21: 11378604.69 | H21: 11372892.44 | I21: 12040028.4 | J21: 11780118.67 | K21: 11586924.8 | L21: 11555973.49 | M21: 11874468.81 | N21: 15210823.14 | O21: 151870080.4
A22: 9 | B22: USL | C22: 296522.989 | D22: 257279.8441 | E22: 245796.3602 | F22: 207954.2699 | G22: 188608.6398 | H22: 169604.5837 | I22: 182197.1265 | J22: 205405.9386 | K22: 227489.7055 | L22: 267596.1999 | M22: 287120.3991 | N22: 311169.9439 | O22: 2846746
A25: Monthly kWh by class (with normalized weather) | C25: Jan | D25: Feb | E25: Mar | F25: Apr | G25: May | H25: Jun | I25: Jul | J25: Aug | K25: Sep | L25: Oct | M25: Nov | N25: Dec | O25: TOTAL
A26: 1 | B26: Residential | C26: 54280655.17 | D26: 46698658.95 | E26: 46755843.99 | F26: 37560839.25 | G26: 35059838.6 | H26: 34832459.46 | I26: 42372114.45 | J26: 38905126.96 | K26: 32221719.35 | L26: 34936742.06 | M26: 40349645.81 | N26: 48924976.95 | O26: 492898621
A27: 2 | B27: GS>50 <200kW | C27: 32097674.61 | D27: 31857093.05 | E27: 29297623.6 | F27: 25267284.04 | G27: 23654197.03 | H27: 24827765.7 | I27: 24299596.53 | J27: 26169767.14 | K27: 24439541.66 | L27: 24964478.9 | M27: 26154629.28 | N27: 30243636.95 | O27: 323273288.5
A28: 3 | B28: Street Lighting | C28: 925796.7392 | D28: 803272.7634 | E28: 767419.3139 | F28: 649269.6761 | G28: 588869.2283 | H28: 529535.2346 | I28: 568851.3602 | J28: 641313.3391 | K28: 710262.7297 | L28: 835482.2342 | M28: 896440.2058 | N28: 971527.0994 | O28: 8888039.924
A29: 4 | B29: Sentinel lighting | C29: 4241.375798 | D29: 3680.053638 | E29: 3515.797331 | F29: 2974.515435 | G29: 2697.80135 | H29: 2425.973038 | I29: 2606.092989 | J29: 2938.064869 | K29: 3253.944439 | L29: 3827.615693 | M29: 4106.883976 | N29: 4450.881443 | O29: 40719
A30: 5 | B30: GS > 200 kW < 1000 kW | C30: 2713135.462 | D30: 2437706.843 | E30: 2579214.618 | F30: 2448949.741 | G30: 2552394.837 | H30: 2676055.042 | I30: 2922771.67 | J30: 2760980.469 | K30: 2379431.988 | L30: 2402360.141 | M30: 2344143.565 | N30: 2503948.388 | O30: 30721092.76
A31: 6 | B31: Intermediate Use 1000 - 5000 kW | C31: 5994115.196 | D31: 5669698.703 | E31: 5922196.694 | F31: 5552475.466 | G31: 5676670.494 | H31: 6012353.277 | I31: 6656842.119 | J31: 6519918.383 | K31: 6434187.601 | L31: 6460555.075 | M31: 6565114.023 | N31: 6543079.597 | O31: 74007206.63
A32: 7 | B32: Large user > 5000 kW | C32: 7570627.332 | D32: 7372011.441 | E32: 7872115.073 | F32: 7029672.966 | G32: 7345177.651 | H32: 7805933.697 | I32: 4797729.115 | J32: 7759644.892 | K32: 7000305.907 | L32: 7432702.255 | M32: 7684410.959 | N32: 6231928.021 | O32: 85902259.31
A33: 8 | B33: GS < 50 | C33: 16049148.67 | D33: 13923793.66 | E33: 13639981.01 | F33: 11452757.24 | G33: 11462818.58 | H33: 11525878.47 | I33: 12169048.28 | J33: 11897749.81 | K33: 11417549.67 | L33: 11779334.38 | M33: 12200689.41 | N33: 15105593.51 | O33: 152624342.7
A34: 9 | B34: USL | C34: 296522.989 | D34: 257279.8441 | E34: 245796.3602 | F34: 207954.2699 | G34: 188608.6398 | H34: 169604.5837 | I34: 182197.1265 | J34: 205405.9386 | K34: 227489.7055 | L34: 267596.1999 | M34: 287120.3991 | N34: 311169.9439 | O34: 2846746
A37: Residential class information | C37: Equipment saturation
B38: Electric space heating | C38: 0.1247060207
B39: Electric water heating | C39: 0.2465
B40: Air conditioning | C40: 0.5087518353
B41: Baseload | C41: 1
A44: General service >50kW to < 200kW | C44: 2004 kWh (Actual) | D44: 2004 kWh (Weather Corrected)
B45: Weather sensitive load | C45: 279989102.5 | D45: 282500294.1
B46: Non-weather sensitive load | C46: 40772994.42 | D46: 40772994.42
B47: TOTAL | C47: 320762097 | D47: 323273288.5
A50: General service >200kW to < 1000kW | C50: 2004 kWh (Actual) | D50: 2004 kWh (Weather Corrected)
B51: Weather sensitive load | C51: 30394451.18 | D51: 30721092.76
B52: Non-weather sensitive load | C52: 0 | D52: 0
B53: TOTAL | C53: 30394451.18 | D53: 30721092.76
E54: =SUM(D45,D51)/SUM(D47,D53) -> 0.8848202215
A56: Intermediate User 1000 - 5000 kW | C56: 2004 kWh (Actual) | D56: 2004 kWh (Weather Corrected)
B57: Weather sensitive load | C57: 59614412.95 | D57: 60301492.05 | E57: =D57/D59 -> 0.8148056763
B58: Non-weather sensitive load | C58: 13705714.58 | D58: 13705714.58
B59: TOTAL | C59: 73320127.53 | D59: 74007206.63
A62: Large customers > 5000 kW | C62: 2004 kWh (Actual) | D62: 2004 kWh (Weather Corrected)
B63: Weather sensitive load | C63: 0 | D63: 0
B64: Non-weather sensitive load | C64: 85902259.31 | D64: 85902259.31
B65: TOTAL | C65: 85902259.31 | D65: 85902259.31

Sheet Hourly load shapes by class
A1: ALL UNITS IN GWh | T1: I2 | AB1: I1 & I4 | AE1: I2
A2: Year | B2: Month | C2: Day | D2: Hour (EST) | E2: Residential | F2: GS>50-200kW | G2: Street Lighting | H2: Sentinel Lighting | I2: GS>200-1000kW | J2: Intermediate Use 1000-5000kW | K2: Large User >5000kW | L2: GS < 50 kW | M2: USL | N2: TOTAL LDC sales | O2: =E2 -> Residential | P2: =F2 -> GS>50-200kW | Q2: Street Lighting | R2: Sentinel Lighting | S2: GS>200-1000kW | T2: Intermediate Use 1000-5000kW | U2: =K2 -> Large User >5000kW | V2: =L2 -> GS < 50 kW | W2: =M2 -> USL | X2: =N2 -> TOTAL LDC sales | AA2: =E2 -> Residential | AB2: GS>50-1000kW | AC2: =G2 -> Street Lighting | AD2: Sentinel Lighting | AE2: =J2 -> Intermediate Use 1000-5000kW | AF2: =K2 -> Large User >5000kW | AG2: =L2 -> GS < 50 kW | AH2: =M2 -> USL | AI2: =N2 -> TOTAL LDC sales
A3: 2004 | B3: 1 | C3: 1 | D3: 1 | E3: 0.05514172184 | F3: 0.03043377355 | G3: 0.00203851515 | H3: 9.339100533e-06 | I3: 0.003157403755 | J3: 0.006833172898 | K3: 0.00215866112 | L3: 0.01800589796 | M3: 0.0006529150295 | N3: 0.1184314004 | O3: =E3*1000000*O$8826 -> 55141.72184 | P3: =F3*1000000*P$8826 -> 30433.77355 | Q3: 2038.51515 | R3: 9.339100533 | S3: 3157.403755 | T3: 6833.172898 | U3: 2158.66112 | V3: 18005.89796 | W3: 652.9150295 | X3: =SUM(O3:W3) -> 118431.4004 | AA3: =O3*AA$8826 -> 54108.57086 | AB3: =(P3+S3)*AB$8826 -> 34711.7512 | AC3: =Q3*AC$8826 -> 1582.313512 | AD3: 7.736103451 | AE3: =T3*AE$8826 -> 6127.169354 | AF3: =U3*AF$8826 -> 1130.517813 | AG3: 16179.65373 | AH3: 616.5223264 | AI3: =SUM(AA3:AH3) -> 114464.2349
A4: 2004 | B4: 1 | C4: 1 | D4: 2 | E4: 0.04907086545 | F4: 0.02985659433 | G4: 0.00203851515 | H4: 9.339100533e-06 | I4: 0.003139034219 | J4: 0.007039204861 | K4: 0.00214328312 | L4: 0.01724532991 | M4: 0.0006529150295 | N4: 0.1111950812 | O4: =E4*1000000*O$8826 -> 49070.86545 | P4: =F4*1000000*P$8826 -> 29856.59433 | Q4: =G4*1000000*Q$8826 -> 2038.51515 | R4: =H4*1000000*R$8826 -> 9.339100533 | S4: =I4*1000000*S$8826 -> 3139.034219 | T4: =J4*1000000*T$8826 -> 7039.204861 | U4: =K4*1000000*U$8826 -> 2143.28312 | V4: =L4*1000000*V$8826 -> 17245.32991 | W4: =M4*1000000*W$8826 -> 652.9150295 | X4: =SUM(O4:W4) -> 111195.0812 | AA4: =O4*AA$8826 -> 48151.45976 | AB4: =(P4+S4)*AB$8826 -> 34096.33543 | AC4: =Q4*AC$8826 -> 1582.313512 | AD4: =R4*AD$8826 -> 7.736103451 | AE4: =T4*AE$8826 -> 6311.914091 | AF4: =U4*AF$8826 -> 1122.464162 | AG4: =V4*AG$8826 -> 15496.22612 | AH4: =W4*AH$8826 -> 616.5223264 | AI4: =SUM(AA4:AH4) -> 107384.9715
A5: 2004 | B5: 1 | C5: 1 | D5: 3 | E5: 0.04630322842 | F5: 0.02883485314 | G5: 0.00203851515 | H5: 9.339100533e-06 | I5: 0.003114981058 | J5: 0.007064264007 | K5: 0.00214082264 | L5: 0.0167495841 | M5: 0.0006529150295 | N5: 0.1069085026 | O5: 46303.22842 | P5: 28834.85314 | Q5: 2038.51515 | R5: 9.339100533 | S5: 3114.981058 | T5: 7064.264007 | U5: 2140.82264 | V5: 16749.5841 | W5: 652.9150295 | X5: 106908.5026 | AA5: 45435.67797 | AB5: 33015.65424 | AC5: 1582.313512 | AD5: 7.736103451 | AE5: 6334.384126 | AF5: 1121.175578 | AG5: 15050.76122 | AH5: 616.5223264 | AI5: 103164.2251
A6: 2004 | B6: 1 | C6: 1 | D6: 4 | E6: 0.04350475163 | F6: 0.02902123673 | G6: 0.00203851515 | H6: 9.339100533e-06 | I6: 0.003131620725 | J6: 0.007157103859 | K6: 0.00216788792 | L6: 0.01738281018 | M6: 0.0006529150295 | N6: 0.1050661803 | O6: 43504.75163 | P6: 29021.23673 | Q6: 2038.51515 | R6: 9.339100533 | S6: 3131.620725 | T6: 7157.103859 | U6: 2167.88792 | V6: 17382.81018 | W6: 652.9150295 | X6: 105066.1803 | AA6: 42689.63423 | AB6: 33225.45019 | AC6: 1582.313512 | AD6: 7.736103451 | AE6: 6417.631763 | AF6: 1135.350003 | AG6: 15619.76248 | AH6: 616.5223264 | AI6: 101294.4006
A7: 2004 | B7: 1 | C7: 1 | D7: 5 | E7: 0.04401054507 | F7: 0.02897810223 | G7: 0.00203851515 | H7: 9.339100533e-06 | I7: 0.003191753751 | J7: 0.007222974365 | K7: 0.00216809296 | L7: 0.01734597262 | M7: 0.0006529150295 | N7: 0.1056182103 | O7: 44010.54507 | P7: 28978.10223 | Q7: 2038.51515 | R7: 9.339100533 | S7: 3191.753751 | T7: 7222.974365 | U7: 2168.09296 | V7: 17345.97262 | W7: 652.9150295 | X7: 105618.2103 | AA7: 43185.95099 | AB7: 33243.01577 | AC7: 1582.313512 | AD7: 7.736103451 | AE7: 6476.696527 | AF7: 1135.457385 | AG7: 15586.66117 | AH7: 616.5223264 | AI7: 101834.3538
A8: 2004 | B8: 1 | C8: 1 | D8: 6 | E8: 0.04604518361 | F8: 0.02972934029 | G8: 0.00203851515 | H8: 9.339100533e-06 | I8: 0.003218278303 | J8: 0.007026921773 | K8: 0.00214922928 | L8: 0.01791769635 | M8: 0.0006529150295 | N8: 0.1087874189 | O8: 46045.18361 | P8: 29729.34029 | Q8: 2038.51515 | R8: 9.339100533 | S8: 3218.278303 | T8: 7026.921773 | U8: 2149.22928 | V8: 17917.69635 | W8: 652.9150295 | X8: 108787.4189 | AA8: 45182.46796 | AB8: 34046.7239 | AC8: 1582.313512 | AD8: 7.736103451 | AE8: 6300.900092 | AF8: 1125.57824 | AG8: 16100.39795 | AH8: 616.5223264 | AI8: 104962.6401
A9: 2004 | B9: 1 | C9: 1 | D9: 7 | E9: 0.04962540304 | F9: 0.03123287236 | G9: 0.00203851515 | H9: 9.339100533e-06 | I9: 0.003316056524 | J9: 0.0075703062 | K9: 0.002147794 | L9: 0.01872220084 | M9: 0.0006529150295 | N9: 0.1153154023 | O9: 49625.40304 | P9: 31232.87236 | Q9: 2038.51515 | R9: 9.339100533 | S9: 3316.056524 | T9: 7570.3062 | U9: 2147.794 | V9: 18722.20084 | W9: 652.9150295 | X9: 115315.4023 | AA9: 48695.60738 | AB9: 35701.45258 | AC9: 1582.313512 | AD9: 7.736103451 | AE9: 6788.142031 | AF9: 1124.826566 | AG9: 16823.30574 | AH9: 616.5223264 | AI9: 111339.9062
A10: 2004 | B10: 1 | C10: 1 | D10: 8 | E10: 0.055333109 | F10: 0.03344319016 | G10: 0.001698924848 | H10: 7.783326974e-06 | I10: 0.003521744736 | J10: 0.007913914305 | K10: 0.0021549704 | L10: 0.01933728687 | M10: 0.0005441478162 | N10: 0.1239550715 | O10: 55333.109 | P10: 33443.19016 | Q10: 1698.924848 | R10: 7.783326974 | S10: 3521.744736 | T10: 7913.914305 | U10: 2154.9704 | V10: 19337.28687 | W10: 544.1478162 | X10: 123955.0715 | AA10: 54296.37214 | AB10: 38198.05456 | AC10: 1318.720512 | AD10: 6.447368507 | AE10: 7096.24854 | AF10: 1128.584937 | AG10: 17376.00681 | AH10: 513.8176675 | AI10: 119934.2525
A11: 2004 | B11: 1 | C11: 1 | D11: 9 | E11: 0.06360481542 | F11: 0.03428604073 | G11: 0 | H11: 0 | I11: 0.003671418681 | J11: 0.007832486603 | K11: 0.00215845608 | L11: 0.01838112216 | M11: 0 | N11: 0.1299343397 | O11: 63604.81542 | P11: 34286.04073 | Q11: 0 | R11: 0 | S11: 3671.418681 | T11: 7832.486603 | U11: 2158.45608 | V11: 18381.12216 | W11: 0 | X11: 129934.3397 | AA11: 62413.09752 | AB11: 39223.68887 | AC11: 0 | AD11: 0 | AE11: 7023.23395 | AF11: 1130.410431 | AG11: 16516.82089 | AH11: 0 | AI11: 126307.2517
A12: 2004 | B12: 1 | C12: 1 | D12: 10 | E12: 0.07049935109 | F12: 0.03619078005 | G12: 0 | H12: 0 | I12: 0.003699838168 | J12: 0.007902868232 | K12: 0.00217301392 | L12: 0.01921888119 | M12: 0 | N12: 0.1396847327 | O12: 70499.35109 | P12: 36190.78005 | Q12: 0 | R12: 0 | S12: 3699.838168 | T12: 7902.868232 | U12: 2173.01392 | V12: 19218.88119 | W12: 0 | X12: 139684.7327 | AA12: 69178.45521 | AB12: 41221.33625 | AC12: 0 | AD12: 0 | AE12: 7086.343748 | AF12: 1138.034554 | AG12: 17269.6104 | AH12: 0 | AI12: 135893.7802
A13: 2004 | B13: 1 | C13: 1 | D13: 11 | E13: 0.07231751416 | F13: 0.03828948716 | G13: 0 | H13: 0 | I13: 0.003617051782 | J13: 0.007958982811 | K13: 0.00214246296 | L13: 0.02126533423 | M13: 0 | N13: 0.1455908331 | O13: 72317.51416 | P13: 38289.48716 | Q13: 0 | R13: 0 | S13: 3617.051782 | T13: 7958.982811 | U13: 2142.46296 | V13: 21265.33423 | W13: 0 | X13: 145590.8331 | AA13: 70962.55265 | AB13: 43304.50642 | AC13: 0 | AD13: 0 | AE13: 7136.660567 | AF13: 1122.034634 | AG13: 19108.50239 | AH13: 0 | AI13: 141634.2567
A14: 2004 | B14: 1 | C14: 1 | D14: 12 | E14: 0.07516280801 | F14: 0.03944864809 | G14: 0 | H14: 0 | I14: 0.003540690761 | J14: 0.008187400272 | K14: 0.00214430832 | L14: 0.02160307254 | M14: 0 | N14: 0.150086928 | O14: 75162.80801 | P14: 39448.64809 | Q14: 0 | R14: 0 | S14: 3540.690761 | T14: 8187.400272 | U14: 2144.30832 | V14: 21603.07254 | W14: 0 | X14: 150086.928 | AA14: 73754.53627 | AB14: 44423.42764 | AC14: 0 | AD14: 0 | AE14: 7341.477932 | AF14: 1123.001072 | AG14: 19411.98567 | AH14: 0 | AI14: 146054.4286
A15: 2004 | B15: 1 | C15: 1 | D15: 13 | E15: 0.07692582107 | F15: 0.03939128194 | G15: 0 | H15: 0 | I15: 0.003566885957 | J15: 0.008179164021 | K15: 0.00214225792 | L15: 0.0219267179 | M15: 0 | N15: 0.1521321288 | O15: 76925.82107 | P15: 39391.28194 | Q15: 0 | R15: 0 | S15: 3566.885957 | T15: 8179.164021 | U15: 2142.25792 | V15: 21926.7179 | W15: 0 | X15: 152132.1288 | AA15: 75484.51702 | AB15: 44391.21685 | AC15: 0 | AD15: 0 | AE15: 7334.092651 | AF15: 1121.927252 | AG15: 19702.80537 | AH15: 0 | AI15: 148034.5591
A16: 2004 | B16: 1 | C16: 1 | D16: 14 | E16: 0.0743637128 | F16: 0.03914053651 | G16: 0 | H16: 0 | I16: 0.003591433291 | J16: 0.008133200002 | K16: 0.00213938736 | L16: 0.02213670037 | M16: 0 | N16: 0.1495049703 | O16: 74363.7128 | P16: 39140.53651 | Q16: 0 | R16: 0 | S16: 3591.433291 | T16: 8133.200002 | U16: 2139.38736 | V16: 22136.70037 | W16: 0 | X16: 149504.9703 | AA16: 72970.41313 | AB16: 44157.47297 | AC16: 0 | AD16: 0 | AE16: 7292.877635 | AF16: 1120.423904 | AG16: 19891.49041 | AH16: 0 | AI16: 145432.6781
A17: 2004 | B17: 1 | C17: 1 | D17: 15 | E17: 0.07192268294 | F17: 0.03913913191 | G17: 0 | H17: 0 | I17: 0.00347808656 | J17: 0.008064838826 | K17: 0.0021354916 | L17: 0.02306207841 | M17: 0 | N17: 0.1478023102 | O17: 71922.68294 | P17: 39139.13191 | Q17: 0 | R17: 0 | S17: 3478.08656 | T17: 8064.838826 | U17: 2135.4916 | V17: 23062.07841 | W17: 0 | X17: 147802.3102 | AA17: 70575.1191 | AB17: 44038.89363 | AC17: 0 | AD17: 0 | AE17: 7231.579537 | AF17: 1118.383646 | AG17: 20723.01218 | AH17: 0 | AI17: 143686.9881
A18: 2004 | B18: 1 | C18: 1 | D18: 16 | E18: 0.07512919554 | F18: 0.03934124128 | G18: 0 | H18: 0 | I18: 0.003580642314 | J18: 0.007964775999 | K18: 0.0021293404 | L18: 0.02290612896 | M18: 0 | N18: 0.1510513245 | O18: 75129.19554 | P18: 39341.24128 | Q18: 0 | R18: 0 | S18: 3580.642314 | T18: 7964.775999 | U18: 2129.3404 | V18: 22906.12896 | W18: 0 | X18: 151051.3245 | AA18: 73721.55358 | AB18: 44353.72213 | AC18: 0 | AD18: 0 | AE18: 7141.855203 | AF18: 1115.162185 | AG18: 20582.87987 | AH18: 0 | AI18: 146915.173
A19: 2004 | B19: 1 | C19: 1 | D19: 17 | E19: 0.08379541042 | F19: 0.03983209542 | G19: 0.000373730394 | H19: 1.712180418e-06 | I19: 0.003652143053 | J19: 0.008149392242 | K19: 0.0021508696 | L19: 0.02169909552 | M19: 0.0001197019268 | N19: 0.1597741508 | O19: 83795.41042 | P19: 39832.09542 | Q19: 373.730394 | R19: 1.712180418 | S19: 3652.143053 | T19: 8149.392242 | U19: 2150.8696 | V19: 21699.09552 | W19: 119.7019268 | X19: 159774.1508 | AA19: 82225.39578 | AB19: 44934.83671 | AC19: 290.0928415 | AD19: 1.418295562 | AE19: 7307.396893 | AF19: 1126.437296 | AG19: 19498.26954 | AH19: 113.0298845 | AI19: 155496.8772
A20: 2004 | B20: 1 | C20: 1 | D20: 18 | E20: 0.09406744436 | F20: 0.04085911508 | G20: 0.00203851515 | H20: 9.339100533e-06 | I20: 0.003714253514 | J20: 0.008176785778 | K20: 0.00217321896 | L20: 0.02139791537 | M20: 0.0006529150295 | N20: 0.1730895023 | O20: 94067.44436 | P20: 40859.11508 | Q20: 2038.51515 | R20: 9.339100533 | S20: 3714.253514 | T20: 8176.785778 | U20: 2173.21896 | V20: 21397.91537 | W20: 652.9150295 | X20: 173089.5023 | AA20: 92304.96998 | AB20: 46060.29931 | AC20: 1582.313512 | AD20: 7.736103451 | AE20: 7331.960128 | AF20: 1138.141936 | AG20: 19227.63652 | AH20: 616.5223264 | AI20: 168269.5798
A21: 2004 | B21: 1 | C21: 1 | D21: 19 | E21: 0.09650077398 | F21: 0.03924441211 | G21: 0.00203851515 | H21: 9.339100533e-06 | I21: 0.003633361815 | J21: 0.007801451824 | K21: 0.0021549704 | L21: 0.01857626305 | M21: 0.0006529150295 | N21: 0.1706120025 | O21: 96500.77398 | P21: 39244.41211 | Q21: 2038.51515 | R21: 9.339100533 | S21: 3633.361815 | T21: 7801.451824 | U21: 2154.9704 | V21: 18576.26305 | W21: 652.9150295 | X21: 170612.0025 | AA21: 94692.70804 | AB21: 44308.141 | AC21: 1582.313512 | AD21: 7.736103451 | AE21: 6995.405684 | AF21: 1128.584937 | AG21: 16692.16966 | AH21: 616.5223264 | AI21: 166023.5813
A22: 2004 | B22: 1 | C22: 1 | D22: 20 | E22: 0.09313133178 | F22: 0.03838233647 | G22: 0.00203851515 | H22: 9.339100533e-06 | I22: 0.003608402562 | J22: 0.007349477026 | K22: 0.00215168976 | L22: 0.01920092764 | M22: 0.0006529150295 | N22: 0.1665249345 | O22: 93131.33178 | P22: 38382.33647 | Q22: 2038.51515 | R22: 9.339100533 | S22: 3608.402562 | T22: 7349.477026 | U22: 2151.68976 | V22: 19200.92764 | W22: 652.9150295 | X22: 166524.9345 | AA22: 91386.39666 | AB22: 43391.51535 | AC22: 1582.313512 | AD22: 7.736103451 | AE22: 6590.128931 | AF22: 1126.866824 | AG22: 17253.47778 | AH22: 616.5223264 | AI22: 161954.9575
A23: 2004 | B23: 1 | C23: 1 | D23: 21 | E23: 0.0903597633 | F23: 0.0372880665 | G23: 0.00203851515 | H23: 9.339100533e-06 | I23: 0.003461446893 | J23: 0.00746625807 | K23: 0.0021611216 | L23: 0.01915010778 | M23: 0.0006529150295 | N23: 0.1625875334 | O23: 90359.7633 | P23: 37288.0665 | Q23: 2038.51515 | R23: 9.339100533 | S23: 3461.446893 | T23: 7466.25807 | U23: 2161.1216 | V23: 19150.10778 | W23: 652.9150295 | X23: 162587.5334 | AA23: 88666.75708 | AB23: 42108.88346 | AC23: 1582.313512 | AD23: 7.736103451 | AE23: 6694.844155 | AF23: 1131.806397 | AG23: 17207.81232 | AH23: 616.5223264 | AI23: 158016.6754
A24: 2004 | B24: 1 | C24: 1 | D24: 22 | E24: 0.08370983132 | F24: 0.03625543281 | G24: 0.00203851515 | H24: 9.339100533e-06 | I24: 0.003429732889 | J24: 0.007875648997 | K24: 0.002173424 | L24: 0.01925958533 | M24: 0.0006529150295 | N24: 0.1554044246 | O24: 83709.83132 | P24: 36255.43281 | Q24: 2038.51515 | R24: 9.339100533 | S24: 3429.732889 | T24: 7875.648997 | U24: 2173.424 | V24: 19259.58533 | W24: 652.9150295 | X24: 155404.4246 | AA24: 82141.42012 | AB24: 41009.03001 | AC24: 1582.313512 | AD24: 7.736103451 | AE24: 7061.936804 | AF24: 1138.249318 | AG24: 17306.18614 | AH24: 616.5223264 | AI24: 150863.3943
A25: 2004 | B25: 1 | C25: 1 | D25: 23 | E25: 0.07485216771 | F25: 0.03428870928 | G25: 0.00203851515 | H25: 9.339100533e-06 | I25: 0.003273386477 | J25: 0.00767301213 | K25: 0.00218818688 | L25: 0.01802071371 | M25: 0.0006529150295 | N25: 0.1429969455 | O25: 74852.16771 | P25: 34288.70928 | Q25: 2038.51515 | R25: 9.339100533 | S25: 3273.386477 | T25: 7673.01213 | U25: 2188.18688 | V25: 18020.71371 | W25: 652.9150295 | X25: 142996.9455 | AA25: 73449.71621 | AB25: 38815.1362 | AC25: 1582.313512 | AD25: 7.736103451 | AE25: 6880.236382 | AF25: 1145.980822 | AG25: 16192.96679 | AH25: 616.5223264 | AI25: 138690.6084
A26: 2004 | B26: 1 | C26: 1 | D26: 24 | E26: 0.06209926668 | F26: 0.03451237694 | G26: 0.00203851515 | H26: 9.339100533e-06 | I26: 0.003064567883 | J26: 0.007259181297 | K26: 0.00217916512 | L26: 0.02164072276 | M26: 0.0006529150295 | N26: 0.13345605 | O26: 62099.26668 | P26: 34512.37694 | Q26: 2038.51515 | R26: 9.339100533 | S26: 3064.567883 | T26: 7259.181297 | U26: 2179.16512 | V26: 21640.72276 | W26: 652.9150295 | X26: 133456.05 | AA26: 60935.75717 | AB26: 38830.48063 | AC26: 1582.313512 | AD26: 7.736103451 | AE26: 6509.162558 | AF26: 1141.256014 | AG26: 19445.81722 | AH26: 616.5223264 | AI26: 129069.0455
A27: 2004 | B27: 1 | C27: 2 | D27: 1 | E27: 0.05125381012 | F27: 0.03264409302 | G27: 0.00203851515 | H27: 9.339100533e-06 | I27: 0.003147268916 | J27: 0.007182827951 | K27: 0.00217608952 | L27: 0.01570697719 | M27: 0.0006529150295 | N27: 0.114811836 | O27: 51253.81012 | P27: 32644.09302 | Q27: 2038.51515 | R27: 9.339100533 | S27: 3147.268916 | T27: 7182.827951 | U27: 2176.08952 | V27: 15706.97719 | W27: 652.9150295 | X27: 114811.836 | AA27: 50293.50417 | AB27: 36985.33217 | AC27: 1582.313512 | AD27: 7.736103451 | AE27: 6440.698041 | AF27: 1139.645284 | AG27: 14113.90049 | AH27: 616.5223264 | AI27: 111179.6521
A28: 2004 | B28: 1 | C28: 2 | D28: 2 | E28: 0.04559252584 | F28: 0.03177820449 | G28: 0.00203851515 | H28: 9.339100533e-06 | I28: 0.003128958266 | J28: 0.00701174512 | K28: 0.00217280888 | L28: 0.01541166677 | M28: 0.0006529150295 | N28: 0.1077966786 | O28: 45592.52584 | P28: 31778.20449 | Q28: 2038.51515 | R28: 9.339100533 | S28: 3128.958266 | T28: 7011.74512 | U28: 2172.80888 | V28: 15411.66677 | W28: 652.9150295 | X28: 107796.6786 | AA28: 44738.29131 | AB28: 36071.63684 | AC28: 1582.313512 | AD28: 7.736103451 | AE28: 6287.291491 | AF28: 1137.927172 | AG28: 13848.54186 | AH28: 616.5223264 | AI28: 104290.2606
A29: 2004 | B29: 1 | C29: 2 | D29: 3 | E29: 0.04307111509 | F29: 0.03076048685 | G29: 0.00203851515 | H29: 9.339100533e-06 | I29: 0.0031049824 | J29: 0.006900575316 | K29: 0.0021754744 | L29: 0.01492771196 | M29: 0.0006529150295 | N29: 0.1036411153 | O29: 43071.11509 | P29: 30760.48685 | Q29: 2038.51515 | R29: 9.339100533 | S29: 3104.9824 | T29: 6900.575316 | U29: 2175.4744 | V29: 14927.71196 | W29: 652.9150295 | X29: 103641.1153 | AA29: 42264.12243 | AB29: 34995.1933 | AC29: 1582.313512 | AD29: 7.736103451 | AE29: 6187.607753 | AF29: 1139.323138 | AG29: 13413.67206 | AH29: 616.5223264 | AI29: 100206.4906
A30: 2004 | B30: 1 | C30: 2 | D30: 4 | E30: 0.04079328718 | F30: 0.0310945897 | G30: 0.00203851515 | H30: 9.339100533e-06 | I30: 0.003121568636 | J30: 0.006707878428 | K30: 0.00218962216 | L30: 0.01524737736 | M30: 0.0006529150295 | N30: 0.1018550928 | O30: 40793.28718 | P30: 31094.5897 | Q30: 2038.51515 | R30: 9.339100533 | S30: 3121.568636 | T30: 6707.878428 | U30: 2189.62216 | V30: 15247.37736 | W30: 652.9150295 | X30: 101855.0928 | AA30: 40028.97256 | AB30: 35357.58108 | AC30: 1582.313512 | AD30: 7.736103451 | AE30: 6014.820311 | AF30: 1146.732497 | AG30: 13700.91547 | AH30: 616.5223264 | AI30: 98455.59386
A31: 2004 | B31: 1 | C31: 2 | D31: 5 | E31: 0.04073081266 | F31: 0.03147352861 | G31: 0.00203851515 | H31: 9.339100533e-06 | I31: 0.003181508704 | J31: 0.006569394653 | K31: 0.00220418 | L31: 0.01553005847 | M31: 0.0006529150295 | N31: 0.1023902524 | O31: 40730.81266 | P31: 31473.52861 | Q31: 2038.51515 | R31: 9.339100533 | S31: 3181.508704 | T31: 6569.394653 | U31: 2204.18 | V31: 15530.05847 | W31: 652.9150295 | X31: 102390.2524 | AA31: 39967.66857 | AB31: 35811.1007 | AC31: 1582.313512 | AD31: 7.736103451 | AE31: 5890.644682 | AF31: 1154.356619 | AG31: 13954.92571 | AH31: 616.5223264 | AI31: 98985.26822
A32: 2004 | B32: 1 | C32: 2 | D32: 6 | E32: 0.04290221416 | F32: 0.03255541725 | G32: 0.00203851515 | H32: 9.339100533e-06 | I32: 0.003207947934 | J32: 0.006837167561 | K32: 0.0021713736 | L32: 0.01508770752 | M32: 0.0006529150295 | N32: 0.1054625973 | O32: 42902.21416 | P32: 32555.41725 | Q32: 2038.51515 | R32: 9.339100533 | S32: 3207.947934 | T32: 6837.167561 | U32: 2171.3736 | V32: 15087.70752 | W32: 652.9150295 | X32: 105462.5973 | AA32: 42098.38608 | AB32: 36956.40147 | AC32: 1582.313512 | AD32: 7.736103451 | AE32: 6130.751288 | AF32: 1137.175498 | AG32: 13557.44011 | AH32: 616.5223264 | AI32: 102086.7264
A33: 2004 | B33: 1 | C33: 2 | D33: 7 | E33: 0.04612819444 | F33: 0.03572154139 | G33: 0.00203851515 | H33: 9.339100533e-06 | I33: 0.003305412357 | J33: 0.007415812744 | K33: 0.00242111232 | L33: 0.01409822875 | M33: 0.0006529150295 | N33: 0.1117910713 | O33: 46128.19444 | P33: 35721.54139 | Q33: 2038.51515 | R33: 9.339100533 | S33: 3305.412357 | T33: 7415.812744 | U33: 2421.11232 | V33: 14098.22875 | W33: 652.9150295 | X33: 111791.0713 | AA33: 45263.92347 | AB33: 40328.86065 | AC33: 1582.313512 | AD33: 7.736103451 | AE33: 6649.610842 | AF33: 1267.966787 | AG33: 12668.319 | AH33: 616.5223264 | AI33: 108385.2527
A34: 2004 | B34: 1 | C34: 2 | D34: 8 | E34: 0.05055618688 | F34: 0.0395391613 | G34: 0.001698924848 | H34: 7.783326974e-06 | I34: 0.003510440401 | J34: 0.007780162834 | K34: 0.0026224616 | L34: 0.01390742251 | M34: 0.0005441478162 | N34: 0.1201666915 | O34: 50556.18688 | P34: 39539.1613 | Q34: 1698.924848 | R34: 7.783326974 | S34: 3510.440401 | T34: 7780.162834 | U34: 2622.4616 | V34: 13907.42251 | W34: 544.1478162 | X34: 120166.6915 | AA34: 49608.95179 | AB34: 44485.70081 | AC34: 1318.720512 | AD34: 6.447368507 | AE34: 6976.316274 | AF34: 1373.415922 | AG34: 12496.86524 | AH34: 513.8176675 | AI34: 116780.2356
A35: 2004 | B35: 1 | C35: 2 | D35: 9 | E35: 0.05589556087 | F35: 0.04244236635 | G35: 0 | H35: 0 | I35: 0.003659633872 | J35: 0.007658527929 | K35: 0.00263148336 | L35: 0.01367563851 | M35: 0 | N35: 0.1259632109 | O35: 55895.56087 | P35: 42442.36635 | Q35: 0 | R35: 0 | S35: 3659.633872 | T35: 7658.527929 | U35: 2631.48336 | V35: 13675.63851 | W35: 0 | X35: 125963.2109 | AA35: 54848.28575 | AB35: 47639.92483 | AC35: 0 | AD35: 0 | AE35: 6867.248689 | AF35: 1378.14073 | AG35: 12288.58989 | AH35: 0 | AI35: 123022.1899
A36: 2004 | B36: 1 | C36: 2 | D36: 10 | E36: 0.06221458797 | F36: 0.04403879783 | G36: 0 | H36: 0 | I36: 0.003687962086 | J36: 0.007620497121 | K36: 0.00257981328 | L36: 0.01527395997 | M36: 0 | N36: 0.1354156183 | O36: 62214.58797 | P36: 44038.79783 | Q36: 0 | R36: 0 | S36: 3687.962086 | T36: 7620.497121 | U36: 2579.81328 | V36: 15273.95997 | W36: 0 | X36: 135415.6183 | AA36: 61048.91776 | AB36: 49318.88516 | AC36: 0 | AD36: 0 | AE36: 6833.147224 | AF36: 1351.080464 | AG36: 13724.80195 | AH36: 0 | AI36: 132276.8326
A37: 2004 | B37: 1 | C37: 2 | D37: 11 | E37: 0.06470769668 | F37: 0.0452502452 | G37: 0 | H37: 0 | I37: 0.00360544146 | J37: 0.00762208983 | K37: 0.0025558236 | L37: 0.01739991603 | M37: 0 | N37: 0.1411412128 | O37: 64707.69668 | P37: 45250.2452 | Q37: 0 | R37: 0 | S37: 3605.44146 | T37: 7622.08983 | U37: 2555.8236 | V37: 17399.91603 | W37: 0 | X37: 141141.2128 | AA37: 63495.31487 | AB37: 50485.47196 | AC37: 0 | AD37: 0 | AE37: 6834.575375 | AF37: 1338.516768 | AG37: 15635.13338 | AH37: 0 | AI37: 137789.0124
A38: 2004 | B38: 1 | C38: 2 | D38: 12 | E38: 0.06654629498 | F38: 0.0457982052 | G38: 0 | H38: 0 | I38: 0.00352932565 | J38: 0.007684937896 | K38: 0.00253039864 | L38: 0.01941073427 | M38: 0 | N38: 0.1454998966 | O38: 66546.29498 | P38: 45798.2052 | Q38: 0 | R38: 0 | S38: 3529.32565 | T38: 7684.937896 | U38: 2530.39864 | V38: 19410.73427 | W38: 0 | X38: 145499.8966 | AA38: 65299.46468 | AB38: 50973.05649 | AC38: 0 | AD38: 0 | AE38: 6890.929978 | AF38: 1325.201399 | AG38: 17442.00482 | AH38: 0 | AI38: 141930.6574
A39: 2004 | B39: 1 | C39: 2 | D39: 13 | E39: 0.06646503413 | F39: 0.04592952531 | G39: 0 | H39: 0 | I39: 0.003555436671 | J39: 0.007738183175 | K39: 0.0025230172 | L39: 0.02127137767 | M39: 0 | N39: 0.1474825742 | O39: 66465.03413 | P39: 45929.52531 | Q39: 0 | R39: 0 | S39: 3555.436671 | T39: 7738.183175 | U39: 2523.0172 | V39: 21271.37767 | W39: 0 | X39: 147482.5742 | AA39: 65219.72635 | AB39: 51135.73939 | AC39: 0 | AD39: 0 | AE39: 6938.673954 | AF39: 1321.335647 | AG39: 19113.93287 | AH39: 0 | AI39: 143729.4082
A40: 2004 | B40: 1 | C40: 2 | D40: 14 | E40: 0.06906671277 | F40: 0.0441953876 | G40: 0 | H40: 0 | I40: 0.003579905285 | J40: 0.007633361647 | K40: 0.00259006528 | L40: 0.01787028453 | M40: 0 | N40: 0.1449357171 | O40: 69066.71277 | P40: 44195.3876 | Q40: 0 | R40: 0 | S40: 3579.905285 | T40: 7633.361647 | U40: 2590.06528 | V40: 17870.28453 | W40: 0 | X40: 144935.7171 | AA40: 67772.6592 | AB40: 49369.03715 | AC40: 0 | AD40: 0 | AE40: 6844.682587 | AF40: 1356.449564 | AG40: 16057.79486 | AH40: 0 | AI40: 141400.6234
A41: 2004 | B41: 1 | C41: 2 | D41: 15 | E41: 0.06625950351 | F41: 0.04403614652 | G41: 0 | H41: 0 | I41: 0.003466922187 | J41: 0.007600056317 | K41: 0.00268274336 | L41: 0.01923972454 | M41: 0 | N41: 0.1432850964 | O41: 66259.50351 | P41: 44036.14652 | Q41: 0 | R41: 0 | S41: 3466.922187 | T41: 7600.056317 | U41: 2682.74336 | V41: 19239.72454 | W41: 0 | X41: 143285.0964 | AA41: 65018.04661 | AB41: 49087.73179 | AC41: 0 | AD41: 0 | AE41: 6814.818365 | AF41: 1404.986233 | AG41: 17288.33972 | AH41: 0 | AI41: 139613.9227
A42: 2004 | B42: 1 | C42: 2 | D42: 16 | E42: 0.06769038318 | F42: 0.04436030991 | G42: 0 | H42: 0 | I42: 0.003569148802 | J42: 0.007517641051 | K42: 0.00267003088 | L42: 0.0206273002 | M42: 0 | N42: 0.146434814 | O42: 67690.38318 | P42: 44360.30991 | Q42: 0 | R42: 0 | S42: 3569.148802 | T42: 7517.641051 | U42: 2670.03088 | V42: 20627.3002 | W42: 0 | X42: 146434.814 | AA42: 66422.11692 | AB42: 49528.34581 | AC42: 0 | AD42: 0 | AE42: 6740.918246 | AF42: 1398.328549 | AG42: 18535.18082 | AH42: 0 | AI42: 142624.8903
A43: 2004 | B43: 1 | C43: 2 | D43: 17 | E43: 0.07625453613 | F43: 0.04397084193 | G43: 0.000373730394 | H43: 1.712180418e-06 | I43: 0.003640420167 | J43: 0.00772224082 | K43: 0.00264727144 | L43: 0.02016058646 | M43: 0.0001197019268 | N43: 0.1548910415 | O43: 76254.53613 | P43: 43970.84193 | Q43: 373.730394 | R43: 1.712180418 | S43: 3640.420167 | T43: 7722.24082 | U43: 2647.27144 | V43: 20160.58646 | W43: 119.7019268 | X43: 154891.0415 | AA43: 74825.80946 | AB43: 49199.53443 | AC43: 290.0928415 | AD43: 1.418295562 | AE43: 6924.378763 | AF43: 1386.409145 | AG43: 18115.80342 | AH43: 113.0298845 | AI43: 150856.4762
A44: 2004 | B44: 1 | C44: 2 | D44: 18 | E44: 0.09036066746 | F44: 0.04367790705 | G44: 0.00203851515 | H44: 9.339100533e-06 | I44: 0.003702331099 | J44: 0.007947743118 | K44: 0.00263619928 | L44: 0.0167738312 | M44: 0.0006529150295 | N44: 0.1677994485 | O44: 90360.66746 | P44: 43677.90705 | Q44: 2038.51515 | R44: 9.339100533 | S44: 3702.331099 | T44: 7947.743118 | U44: 2636.19928 | V44: 16773.8312 | W44: 652.9150295 | X44: 167799.4485 | AA44: 88667.6443 | AB44: 48960.80371 | AC44: 1582.313512 | AD44: 7.736103451 | AE44: 7126.58216 | AF44: 1380.610517 | AG44: 15072.54907 | AH44: 616.5223264 | AI44: 163414.7617
A45: 2004 | B45: 1 | C45: 2 | D45: 19 | E45: 0.09210657926 | F45: 0.04251287199 | G45: 0.00203851515 | H45: 9.339100533e-06 | I45: 0.00362169927 | J45: 0.007915105149 | K45: 0.00263619928 | L45: 0.01390443255 | M45: 0.0006529150295 | N45: 0.1653976568 | O45: 92106.57926 | P45: 42512.87199 | Q45: 2038.51515 | R45: 9.339100533 | S45: 3621.69927 | T45: 7915.105149 | U45: 2636.19928 | V45: 13904.43255 | W45: 652.9150295 | X45: 165397.6568 | AA45: 90380.8442 | AB45: 47673.5824 | AC45: 1582.313512 | AD45: 7.736103451 | AE45: 7097.316346 | AF45: 1380.610517 | AG45: 12494.17854 | AH45: 616.5223264 | AI45: 161233.1039
A46: 2004 | B46: 1 | C46: 2 | D46: 20 | E46: 0.08659415799 | F46: 0.0426710422 | G46: 0.00203851515 | H46: 9.339100533e-06 | I46: 0.003596819916 | J46: 0.007474041049 | K46: 0.00264317064 | L46: 0.01575550571 | M46: 0.0006529150295 | N46: 0.1614355068 | O46: 86594.15799 | P46: 42671.0422 | Q46: 2038.51515 | R46: 9.339100533 | S46: 3596.819916 | T46: 7474.041049 | U46: 2643.17064 | V46: 15755.50571 | W46: 652.9150295 | X46: 161435.5068 | AA46: 84971.70522 | AB46: 47811.31973 | AC46: 1582.313512 | AD46: 7.736103451 | AE46: 6701.822997 | AF46: 1384.261505 | AG46: 14157.50701 | AH46: 616.5223264 | AI46: 157233.1884
A47: 2004 | B47: 1 | C47: 2 | D47: 21 | E47: 0.08387561694 | F47: 0.04193190819 | G47: 0.00203851515 | H47: 9.339100533e-06 | I47: 0.003450335982 | J47: 0.007350353789 | K47: 0.00263148336 | L47: 0.0156779829 | M47: 0.0006529150295 | N47: 0.1576184504 | O47: 83875.61694 | P47: 41931.90819 | Q47: 2038.51515 | R47: 9.339100533 | S47: 3450.335982 | T47: 7350.353789 | U47: 2631.48336 | V47: 15677.9829 | W47: 652.9150295 | X47: 157618.4504 | AA47: 82304.09954 | AB47: 46896.15831 | AC47: 1582.313512 | AD47: 7.736103451 | AE47: 6590.915106 | AF47: 1378.14073 | AG47: 14087.84693 | AH47: 616.5223264 | AI47: 153463.7326
A48: 2004 | B48: 1 | C48: 2 | D48: 22 | E48: 0.07976470955 | F48: 0.03934420575 | G48: 0.00203851515 | H48: 9.339100533e-06 | I48: 0.003418723881 | J48: 0.007257975323 | K48: 0.00262840776 | L48: 0.01554007111 | M48: 0.0006529150295 | N48: 0.1506548627 | O48: 79764.70955 | P48: 39344.20575 | Q48: 2038.51515 | R48: 9.339100533 | S48: 3418.723881 | T48: 7257.975323 | U48: 2628.40776 | V48: 15540.07111 | W48: 652.9150295 | X48: 150654.8627 | AA48: 78270.21527 | AB48: 44189.4656 | AC48: 1582.313512 | AD48: 7.736103451 | AE48: 6508.081185 | AF48: 1376.53 | AG48: 13963.92282 | AH48: 616.5223264 | AI48: 146514.7868
A49: 2004 | B49: 1 | C49: 2 | D49: 23 | E49: 0.07293725355 | F49: 0.03595521569 | G49: 0.00203851515 | H49: 9.339100533e-06 | I49: 0.003262879483 | J49: 0.006992520173 | K49: 0.00263701944 | L49: 0.01414094078 | M49: 0.0006529150295 | N49: 0.1386265984 | O49: 72937.25355 | P49: 35955.21569 | Q49: 2038.51515 | R49: 9.339100533 | S49: 3262.879483 | T49: 6992.520173 | U49: 2637.01944 | V49: 14140.94078 | W49: 652.9150295 | X49: 138626.5984 | AA49: 71570.68043 | AB49: 40526.3784 | AC49: 1582.313512 | AD49: 7.736103451 | AE49: 6270.052866 | AF49: 1381.040045 | AG49: 12706.69898 | AH49: 616.5223264 | AI49: 134661.4227
A50: 2004 | B50: 1 | C50: 2 | D50: 24 | E50: 0.06269960216 | F50: 0.0343174639 | G50: 0.00203851515 | H50: 9.339100533e-06 | I50: 0.003054730974 | J50: 0.006555645612 | K50: 0.00263107328 | L50: 0.01741800862 | M50: 0.0006529150295 | N50: 0.1293772938 | O50: 62699.60216 | P50: 34317.4639 | Q50: 2038.51515 | R50: 9.339100533 | S50: 3054.730974 | T50: 6555.645612 | U50: 2631.07328 | V50: 17418.00862 | W50: 652.9150295 | X50: 129377.2938 | AA50: 61524.84459 | AB50: 38618.90039 | AC50: 1582.313512 | AD50: 7.736103451 | AE50: 5878.316192 | AF50: 1377.925966 | AG50: 15651.39093 | AH50: 616.5223264 | AI50: 125257.95
A51: 2004 | B51: 1 | C51: 3 | D51: 1 | E51: 0.05678301412 | F51: 0.03229909399 | G51: 0.00203851515 | H51: 9.339100533e-06 | I51: 0.003313141539 | J51: 0.006942405831 | K51: 0.0026337388 | L51: 0.01955536902 | M51: 0.0006529150295 | N51: 0.1242275326 | O51: 56783.01412 | P51: 32299.09399 | Q51: 2038.51515 | R51: 9.339100533 | S51: 3313.141539 | T51: 6942.405831 | U51: 2633.7388 | V51: 19555.36902 | W51: 652.9150295 | X51: 124227.5326 | AA51: 55719.11143 | AB51: 36800.23025 | AC51: 1582.313512 | AD51: 7.736103451 | AE51: 6225.116338 | AF51: 1379.321933 | AG51: 17571.97003 | AH51: 616.5223264 | AI51: 119902.3219
A52: 2004 | B52: 1 | C52: 3 | D52: 2 | E52: 0.05099451447 | F52: 0.03171467679 | G52: 0.00203851515 | H52: 9.339100533e-06 | I52: 0.003300276368 | J52: 0.006877962882 | K52: 0.00265362768 | L52: 0.01992688388 | M52: 0.0006529150295 | N52: 0.1181687114 | O52: 50994.51447 | P52: 31714.67679 | Q52: 2038.51515 | R52: 9.339100533 | S52: 3300.276368 | T52: 6877.962882 | U52: 2653.62768 | V52: 19926.88388 | W52: 652.9150295 | X52: 118168.7114 | AA52: 50039.06675 | AB52: 36183.02304 | AC52: 1582.313512 | AD52: 7.736103451 | AE52: 6167.331636 | AF52: 1389.737988 | AG52: 17905.80407 | AH52: 616.5223264 | AI52: 113891.5354
A53: 2004 | B53: 1 | C53: 3 | D53: 3 | E53: 0.04835393039 | F53: 0.03037363377 | G53: 0.00203851515 | H53: 9.339100533e-06 | I53: 0.003277016983 | J53: 0.006735457502 | K53: 0.00264850168 | L53: 0.01892724413 | M53: 0.0006529150295 | N53: 0.1130165537 | O53: 48353.93039 | P53: 30373.63377 | Q53: 2038.51515 | R53: 9.339100533 | S53: 3277.016983 | T53: 6735.457502 | U53: 2648.50168 | V53: 18927.24413 | W53: 652.9150295 | X53: 113016.5537 | AA53: 47447.9574 | AB53: 34773.20863 | AC53: 1582.313512 | AD53: 7.736103451 | AE53: 6039.549915 | AF53: 1387.053437 | AG53: 17007.55256 | AH53: 616.5223264 | AI53: 108861.8939
A54: 2004 | B54: 1 | C54: 3 | D54: 4 | E54: 0.04668704729 | F54: 0.0299056497 | G54: 0.00203851515 | H54: 9.339100533e-06 | I54: 0.00329294894 | J54: 0.006522646095 | K54: 0.00268725424 | L54: 0.01886751459 | M54: 0.0006529150295 | N54: 0.1106638301 | O54: 46687.04729 | P54: 29905.6497 | Q54: 2038.51515 | R54: 9.339100533 | S54: 3292.94894 | T54: 6522.646095 | U54: 2687.25424 | V54: 18867.51459 | W54: 652.9150295 | X54: 110663.8301 | AA54: 45812.30549 | AB54: 34306.07643 | AC54: 1582.313512 | AD54: 7.736103451 | AE54: 5848.726186 | AF54: 1407.348637 | AG54: 16953.88108 | AH54: 616.5223264 | AI54: 106534.9098
A55: 2004 | B55: 1 | C55: 3 | D55: 5 | E55: 0.04524761539 | F55: 0.03034487538 | G55: 0.00203851515 | H55: 9.339100533e-06 | I55: 0.003329840308 | J55: 0.006525402299 | K55: 0.0026829484 | L55: 0.01926983925 | M55: 0.0006529150295 | N55: 0.1101012903 | O55: 45247.61539 | P55: 30344.87538 | Q55: 2038.51515 | R55: 9.339100533 | S55: 3329.840308 | T55: 6525.402299 | U55: 2682.9484 | V55: 19269.83925 | W55: 652.9150295 | X55: 110101.2903 | AA55: 44399.8432 | AB55: 34798.07636 | AC55: 1582.313512 | AD55: 7.736103451 | AE55: 5851.197619 | AF55: 1405.093615 | AG55: 17315.40005 | AH55: 616.5223264 | AI55: 105976.1828
A56: 2004 | B56: 1 | C56: 3 | D56: 6 | E56: 0.04722907269 | F56: 0.03051908312 | G56: 0.00203851515 | H56: 9.339100533e-06 | I56: 0.003400299953 | J56: 0.006598624196 | K56: 0.00270263224 | L56: 0.01862187436 | M56: 0.0006529150295 | N56: 0.1117723558 | O56: 47229.07269 | P56: 30519.08312 | Q56: 2038.51515 | R56: 9.339100533 | S56: 3400.299953 | T56: 6598.624196 | U56: 2702.63224 | V56: 18621.87436 | W56: 652.9150295 | X56: 111772.3558 | AA56: 46344.17535 | AB56: 35050.90564 | AC56: 1582.313512 | AD56: 7.736103451 | AE56: 5916.854228 | AF56: 1415.402288 | AG56: 16733.15485 | AH56: 616.5223264 | AI56: 107667.0643
A57: 2004 | B57: 1 | C57: 3 | D57: 7 | E57: 0.05019497858 | F57: 0.03147311345 | G57: 0.00203851515 | H57: 9.339100533e-06 | I57: 0.003464880907 | J57: 0.006950048564 | K57: 0.00277234584 | L57: 0.0177039303 | M57: 0.0006529150295 | N57: 0.1152600669 | O57: 50194.97858 | P57: 31473.11345 | Q57: 2038.51515 | R57: 9.339100533 | S57: 3464.880907 | T57: 6950.048564 | U57: 2772.34584 | V57: 17703.9303 | W57: 652.9150295 | X57: 115260.0669 | AA57: 49254.51119 | AB57: 36103.49695 | AC57: 1582.313512 | AD57: 7.736103451 | AE57: 6231.969424 | AF57: 1451.912172 | AG57: 15908.31307 | AH57: 616.5223264 | AI57: 111156.7748
A58: 2004 | B58: 1 | C58: 3 | D58: 8 | E58: 0.05449275946 | F58: 0.03361592419 | G58: 0.001698924848 | H58: 7.783326974e-06 | I58: 0.003613383218 | J58: 0.007236329313 | K58: 0.00284964592 | L58: 0.01745523198 | M58: 0.0005441478162 | N58: 0.1215141301 | O58: 54492.75946 | P58: 33615.92419 | Q58: 1698.924848 | R58: 7.783326974 | S58: 3613.383218 | T58: 7236.329313 | U58: 2849.64592 | V58: 17455.23198 | W58: 544.1478162 | X58: 121514.1301 | AA58: 53471.76763 | AB58: 38471.24632 | AC58: 1318.720512 | AD58: 6.447368507 | AE58: 6488.671642 | AF58: 1492.39519 | AG58: 15684.83892 | AH58: 513.8176675 | AI58: 117447.9052
A59: 2004 | B59: 1 | C59: 3 | D59: 9 | E59: 0.06448947371 | F59: 0.03624930285 | G59: 0 | H59: 0 | I59: 0.003757029028 | J59: 0.007345277587 | K59: 0.00284267456 | L59: 0.01937490134 | M59: 0 | N59: 0.1340586591 | O59: 64489.47371 | P59: 36249.30285 | Q59: 0 | R59: 0 | S59: 3757.029028 | T59: 7345.277587 | U59: 2842.67456 | V59: 19374.90134 | W59: 0 | X59: 134058.6591 | AA59: 63281.1806 | AB59: 41340.91002 | AC59: 0 | AD59: 0 | AE59: 6586.363378 | AF59: 1488.744202 | AG59: 17409.80624 | AH59: 0 | AI59: 130107.0044
A60: 2004 | B60: 1 | C60: 3 | D60: 10 | E60: 0.06788123966 | F60: 0.03751018664 | G60: 0 | H60: 0 | I60: 0.003800821276 | J60: 0.007540077157 | K60: 0.0027854684 | L60: 0.01881943839 | M60: 0 | N60: 0.1383372315 | O60: 67881.23966 | P60: 37510.18664 | Q60: 0 | R60: 0 | S60: 3800.821276 | T60: 7540.077157 | U60: 2785.4684 | V60: 18819.43839 | W60: 0 | X60: 138337.2315 | AA60: 66609.39746 | AB60: 42689.10897 | AC60: 0 | AD60: 0 | AE60: 6761.036253 | AF60: 1458.784621 | AG60: 16910.681 | AH60: 0 | AI60: 134429.0083
A61: 2004 | B61: 1 | C61: 3 | D61: 11 | E61: 0.0711084263 | F61: 0.03983418095 | G61: 0 | H61: 0 | I61: 0.003717837438 | J61: 0.008080290173 | K61: 0.00272047072 | L61: 0.02190966263 | M61: 0 | N61: 0.1473708682 | O61: 71108.4263 | P61: 39834.18095 | Q61: 0 | R61: 0 | S61: 3717.837438 | T61: 8080.290173 | U61: 2720.47072 | V61: 21909.66263 | W61: 0 | X61: 147370.8682 | AA61: 69776.11861 | AB61: 45004.8777 | AC61: 0 | AD61: 0 | AE61: 7245.434451 | AF61: 1424.744523 | AG61: 19687.47992 | AH61: 0 | AI61: 143138.6552
A62: 2004 | B62: 1 | C62: 3 | D62: 12 | E62: 0.07251462262 | F62: 0.04067775654 | G62: 0 | H62: 0 | I62: 0.00373998928 | J62: 0.008167204716 | K62: 0.00270919352 | L62: 0.0229009178 | M62: 0 | N62: 0.1507096845 | O62: 72514.62262 | P62: 40677.75654 | Q62: 0 | R62: 0 | S62: 3739.98928 | T62: 8167.204716 | U62: 2709.19352 | V62: 22900.9178 | W62: 0 | X62: 150709.6845 | AA62: 71155.96803 | AB62: 45899.48508 | AC62: 0 | AD62: 0 | AE62: 7323.368982 | AF62: 1418.838513 | AG62: 20578.19726 | AH62: 0 | AI62: 146375.8579
A63: 2004 | B63: 1 | C63: 3 | D63: 13 | E63: 0.074763989 | F63: 0.04017482364 | G63: 0 | H63: 0 | I63: 0.003785485643 | J63: 0.008091761081 | K63: 0.00262512712 | L63: 0.02236379396 | M63: 0 | N63: 0.1518049805 | O63: 74763.989 | P63: 40174.82364 | Q63: 0 | R63: 0 | S63: 3785.485643 | T63: 8091.761081 | U63: 2625.12712 | V63: 22363.79396 | W63: 0 | X63: 151804.9805 | AA63: 73363.18964 | AB63: 45426.78885 | AC63: 0 | AD63: 0 | AE63: 7255.720185 | AF63: 1374.811888 | AG63: 20095.55109 | AH63: 0 | AI63: 147516.0617
A64: 2004 | B64: 1 | C64: 3 | D64: 14 | E64: 0.07283532978 | F64: 0.03967888255 | G64: 0 | H64: 0 | I64: 0.003765463781 | J64: 0.00805012416 | K64: 0.00263189344 | L64: 0.02183537398 | M64: 0 | N64: 0.1487970677 | O64: 72835.32978 | P64: 39678.88255 | Q64: 0 | R64: 0 | S64: 3765.463781 | T64: 8050.12416 | U64: 2631.89344 | V64: 21835.37398 | W64: 0 | X64: 148797.0677 | AA64: 71470.66633 | AB64: 44893.61379 | AC64: 0 | AD64: 0 | AE64: 7218.385191 | AF64: 1378.355494 | AG64: 19620.72598 | AH64: 0 | AI64: 144581.7468
A65: 2004 | B65: 1 | C65: 3 | D65: 15 | E65: 0.07289374384 | F65: 0.03778574316 | G65: 0 | H65: 0 | I65: 0.003751150337 | J65: 0.007876714749 | K65: 0.00267228632 | L65: 0.01913515387 | M65: 0 | N65: 0.1441147923 | O65: 72893.74384 | P65: 37785.74316 | Q65: 0 | R65: 0 | S65: 3751.150337 | T65: 7876.714749 | U65: 2672.28632 | V65: 19135.15387 | W65: 0 | X65: 144114.7923 | AA65: 71527.98593 | AB65: 42922.52992 | AC65: 0 | AD65: 0 | AE65: 7062.892443 | AF65: 1399.509751 | AG65: 17194.37511 | AH65: 0 | AI65: 140107.2931
A66: 2004 | B66: 1 | C66: 3 | D66: 16 | E66: 0.07232704253 | F66: 0.03849461752 | G66: 0 | H66: 0 | I66: 0.003774835588 | J66: 0.007753070092 | K66: 0.00289660008 | L66: 0.02055953364 | M66: 0 | N66: 0.1458056994 | O66: 72327.04253 | P66: 38494.61752 | Q66: 0 | R66: 0 | S66: 3774.835588 | T66: 7753.070092 | U66: 2896.60008 | V66: 20559.53364 | W66: 0 | X66: 145805.6994 | AA66: 70971.9025 | AB66: 43679.5271 | AC66: 0 | AD66: 0 | AE66: 6952.022754 | AF66: 1516.985671 | AG66: 18474.28747 | AH66: 0 | AI66: 141594.7255
A67: 2004 | B67: 1 | C67: 3 | D67: 17 | E67: 0.07834035789 | F67: 0.03954683721 | G67: 0.000339747292 | H67: 1.556492781e-06 | I67: 0.003846488593 | J67: 0.007867060842 | K67: 0.00313342128 | L67: 0.02123811518 | M67: 0.0001088174955 | N67: 0.1544224023 | O67: 78340.35789 | P67: 39546.83721 | Q67: 339.747292 | R67: 1.556492781 | S67: 3846.488593 | T67: 7867.060842 | U67: 3133.42128 | V67: 21238.11518 | W67: 108.8174955 | X67: 154422.4023 | AA67: 76872.55067 | AB67: 44840.89127 | AC67: 263.7148568 | AD67: 1.289330716 | AE67: 7054.235977 | AF67: 1641.011894 | AG67: 19084.04403 | AH67: 102.7521384 | AI67: 149860.4902
A68: 2004 | B68: 1 | C68: 3 | D68: 18 | E68: 0.08889972767 | F68: 0.03930679996 | G68: 0.00203851515 | H68: 9.339100533e-06 | I68: 0.003813516207 | J68: 0.007931433067 | K68: 0.00321769272 | L68: 0.01834058472 | M68: 0.0006529150295 | N68: 0.1642105236 | O68: =E68*1000000*O$8826 -> 88899.72767 | P68: =F68*1000000*P$8826 -> 39306.79996 | Q68: =G68*1000000*Q$8826 -> 2038.51515 | R68: =H68*1000000*R$8826 -> 9.339100533 | S68: =I68*1000000*S$8826 -> 3813.516207 | T68: =J68*1000000*T$8826 -> 7931.433067 | U68: =K68*1000000*U$8826 -> 3217.69272 | V68: =L68*1000000*V$8826 -> 18340.58472 | W68: =M68*1000000*W$8826 -> 652.9150295 | X68: =SUM(O68:W68) -> 164210.5236 | AA68: =O68*AA$8826 -> 87234.07709 | AB68: =(P68+S68)*AB$8826 -> 44558.77426 | AC68: =Q68*AC$8826 -> 1582.313512 | AD68: =R68*AD$8826 -> 7.736103451 | AE68: =T68*AE$8826 -> 7111.957263 | AF68: =U68*AF$8826 -> 1685.1459 | AG68: =V68*AG$8826 -> 16480.39496 | AH68: =W68*AH$8826 -> 616.5223264 | AI68: =SUM(AA68:AH68) -> 159276.9214
A69: 2004 | B69: 1 | C69: 3 | D69: 19 | E69: 0.0904313845 | F69: 0.03976751533 | G69: 0.00203851515 | H69: 9.339100533e-06 | I69: 0.00366143586 | J69: 0.007807018307 | K69: 0.00331365144 | L69: 0.01995359434 | M69: 0.0006529150295 | N69: 0.1676353691 | O69: 90431.3845 | P69: 39767.51533 | Q69: 2038.51515 | R69: 9.339100533 | S69: 3661.43586 | T69: 7807.018307 | U69: 3313.65144 | V69: 19953.59434 | W69: 652.9150295 | X69: 167635.3691 | AA69: 88737.03636 | AB69: 44877.70509 | AC69: 1582.313512 | AD69: 7.736103451 | AE69: 7000.397038 | AF69: 1735.400681 | AG69: 17929.80543 | AH69: 616.5223264 | AI69: 162486.9165
A70: 2004 | B70: 1 | C70: 3 | D70: 20 | E70: 0.08625683103 | F70: 0.03816428164 | G70: 0.00203851515 | H70: 9.339100533e-06 | I70: 0.003566694177 | J70: 0.007683500818 | K70: 0.00328925168 | L70: 0.01920376683 | M70: 0.0006529150295 | N70: 0.1608650955 | O70: 86256.83103 | P70: 38164.28164 | Q70: 2038.51515 | R70: 9.339100533 | S70: 3566.694177 | T70: 7683.500818 | U70: 3289.25168 | V70: 19203.76683 | W70: 652.9150295 | X70: 160865.0955 | AA70: 84640.69852 | AB70: 43123.08666 | AC70: 1582.313512 | AD70: 7.736103451 | AE70: 6889.641378 | AF70: 1722.622222 | AG70: 17256.02901 | AH70: 616.5223264 | AI70: 155838.6497
A71: 2004 | B71: 1 | C71: 3 | D71: 21 | E71: 0.08246050829 | F71: 0.03749967232 | G71: 0.00203851515 | H71: 9.339100533e-06 | I71: 0.003525202149 | J71: 0.007339605587 | K71: 0.00329048192 | L71: 0.01981660459 | M71: 0.0006529150295 | N71: 0.1566328441 | O71: 82460.50829 | P71: 37499.67232 | Q71: 2038.51515 | R71: 9.339100533 | S71: 3525.202149 | T71: 7339.605587 | U71: 3290.48192 | V71: 19816.60459 | W71: 652.9150295 | X71: 156632.8441 | AA71: 80915.50476 | AB71: 42393.43035 | AC71: 1582.313512 | AD71: 7.736103451 | AE71: 6581.277409 | AF71: 1723.266514 | AG71: 17806.70983 | AH71: 616.5223264 | AI71: 151626.7608
A72: 2004 | B72: 1 | C72: 3 | D72: 22 | E72: 0.07768636038 | F72: 0.03624211516 | G72: 0.00203851515 | H72: 9.339100533e-06 | I72: 0.003357274517 | J72: 0.007151228982 | K72: 0.00332226312 | L72: 0.01903195346 | M72: 0.0006529150295 | N72: 0.1494919649 | O72: 77686.36038 | P72: 36242.11516 | Q72: 2038.51515 | R72: 9.339100533 | S72: 3357.274517 | T72: 7151.228982 | U72: 3322.26312 | V72: 19031.95346 | W72: 652.9150295 | X72: 149491.9649 | AA72: 76230.80665 | AB72: 40920.39257 | AC72: 1582.313512 | AD72: 7.736103451 | AE72: 6412.363878 | AF72: 1739.910726 | AG72: 17101.64177 | AH72: 616.5223264 | AI72: 144611.6875
A73: 2004 | B73: 1 | C73: 3 | D73: 23 | E73: 0.07142750866 | F73: 0.0342955457 | G73: 0.00203851515 | H73: 9.339100533e-06 | I73: 0.003231265026 | J73: 0.007061531022 | K73: 0.00354247608 | L73: 0.01906949455 | M73: 0.0006529150295 | N73: 0.1413285903 | O73: 71427.50866 | P73: 34295.5457 | Q73: 2038.51515 | R73: 9.339100533 | S73: 3231.265026 | T73: 7061.531022 | U73: 3542.47608 | V73: 19069.49455 | W73: 652.9150295 | X73: 141328.5903 | AA73: 70089.22255 | AB73: 38778.67409 | AC73: 1582.313512 | AD73: 7.736103451 | AE73: 6331.933513 | AF73: 1855.239006 | AG73: 17135.37527 | AH73: 616.5223264 | AI73: 136397.0164
A74: 2004 | B74: 1 | C74: 3 | D74: 24 | E74: 0.06200384234 | F74: 0.03204894474 | G74: 0.00203851515 | H74: 9.339100533e-06 | I74: 0.003112837844 | J74: 0.006782477367 | K74: 0.00391974968 | L74: 0.01814926906 | M74: 0.0006529150295 | N74: 0.1287178903 | O74: 62003.84234 | P74: 32048.94474 | Q74: 2038.51515 | R74: 9.339100533 | S74: 3112.837844 | T74: 6782.477367 | U74: 3919.74968 | V74: 18149.26906 | W74: 652.9150295 | X74: 128717.8903 | AA74: 60842.12072 | AB74: 36334.75057 | AC74: 1582.313512 | AD74: 7.736103451 | AE74: 6081.711686 | AF74: 2052.821906 | AG74: 16308.48345 | AH74: 616.5223264 | AI74: 123826.4603
A75: 2004 | B75: 1 | C75: 4 | D75: 1 | E75: 0.05123375505 | F75: 0.02884141867 | G75: 0.00203851515 | H75: 9.339100533e-06 | I75: 0.003130747268 | J75: 0.006916816773 | K75: 0.00405610128 | L75: 0.01608916638 | M75: 0.0006529150295 | N75: 0.1129687747 | O75: 51233.75505 | P75: 28841.41867 | Q75: 2038.51515 | R75: 9.339100533 | S75: 3130.747268 | T75: 6916.816773 | U75: 4056.10128 | V75: 16089.16638 | W75: 652.9150295 | X75: 112968.7747 | AA75: 50273.82485 | AB75: 33038.73095 | AC75: 1582.313512 | AD75: 7.736103451 | AE75: 6202.171143 | AF75: 2124.230944 | AG75: 14457.32622 | AH75: 616.5223264 | AI75: 108302.856
A76: 2004 | B76: 1 | C76: 4 | D76: 2 | E76: 0.046518874 | F76: 0.02900310893 | G76: 0.00203851515 | H76: 9.339100533e-06 | I76: 0.003083315278 | J76: 0.006892689511 | K76: 0.0039285664 | L76: 0.0169967633 | M76: 0.0006529150295 | N76: 0.1091240867 | O76: 46518.874 | P76: 29003.10893 | Q76: 2038.51515 | R76: 9.339100533 | S76: 3083.315278 | T76: 6892.689511 | U76: 3928.5664 | V76: 16996.7633 | W76: 652.9150295 | X76: 109124.0867 | AA76: 45647.28315 | AB76: 33156.80079 | AC76: 1582.313512 | AD76: 7.736103451 | AE76: 6180.53671 | AF76: 2057.439333 | AG76: 15272.87032 | AH76: 616.5223264 | AI76: 104521.5022
A77: 2004 | B77: 1 | C77: 4 | D77: 3 | E77: 0.0438153664 | F77: 0.02821333907 | G77: 0.00203851515 | H77: 9.339100533e-06 | I77: 0.003060817747 | J77: 0.006643950416 | K77: 0.00391974968 | L77: 0.01685646213 | M77: 0.0006529150295 | N77: 0.1052104547 | O77: 43815.3664 | P77: 28213.33907 | Q77: 2038.51515 | R77: 9.339100533 | S77: 3060.817747 | T77: 6643.950416 | U77: 3919.74968 | V77: 16856.46213 | W77: 652.9150295 | X77: 105210.4547 | AA77: 42994.42924 | AB77: 32317.43682 | AC77: 1582.313512 | AD77: 7.736103451 | AE77: 5957.497343 | AF77: 2052.821906 | AG77: 15146.79917 | AH77: 616.5223264 | AI77: 100675.5564
A78: 2004 | B78: 1 | C78: 4 | D78: 4 | E78: 0.04188175221 | F78: 0.02827455383 | G78: 0.00203851515 | H78: 9.339100533e-06 | I78: 0.003107681059 | J78: 0.006437535577 | K78: 0.00391974968 | L78: 0.01710551411 | M78: 0.0006529150295 | N78: 0.1034275557 | O78: 41881.75221 | P78: 28274.55383 | Q78: 2038.51515 | R78: 9.339100533 | S78: 3107.681059 | T78: 6437.535577 | U78: 3919.74968 | V78: 17105.51411 | W78: 652.9150295 | X78: 103427.5557 | AA78: 41097.0438 | AB78: 32429.12029 | AC78: 1582.313512 | AD78: 7.736103451 | AE78: 5772.409289 | AF78: 2052.821906 | AG78: 15370.59111 | AH78: 616.5223264 | AI78: 98928.55833
A79: 2004 | B79: 1 | C79: 4 | D79: 5 | E79: 0.0421639449 | F79: 0.0279758439 | G79: 0.00203851515 | H79: 9.339100533e-06 | I79: 0.003155762772 | J79: 0.006475084543 | K79: 0.00393738312 | L79: 0.01661455078 | M79: 0.0006529150295 | N79: 0.1030233393 | O79: 42163.9449 | P79: 27975.8439 | Q79: 2038.51515 | R79: 9.339100533 | S79: 3155.762772 | T79: 6475.084543 | U79: 3937.38312 | V79: 16614.55078 | W79: 652.9150295 | X79: 103023.3393 | AA79: 41373.94924 | AB79: 32170.13132 | AC79: 1582.313512 | AD79: 7.736103451 | AE79: 5806.078695 | AF79: 2062.056759 | AG79: 14929.42363 | AH79: 616.5223264 | AI79: 98548.21158
A80: 2004 | B80: 1 | C80: 4 | D80: 6 | E80: 0.0429559814 | F80: 0.02831775985 | G80: 0.00203851515 | H80: 9.339100533e-06 | I80: 0.003181184059 | J80: 0.006542808582 | K80: 0.00390683216 | L80: 0.01661182929 | M80: 0.0006529150295 | N80: 0.1042171646 | O80: 42955.9814 | P80: 28317.75985 | Q80: 2038.51515 | R80: 9.339100533 | S80: 3181.184059 | T80: 6542.808582 | U80: 3906.83216 | V80: 16611.82929 | W80: 652.9150295 | X80: 104217.1646 | AA80: 42151.14592 | AB80: 32549.72263 | AC80: 1582.313512 | AD80: 7.736103451 | AE80: 5866.805484 | AF80: 2046.056839 | AG80: 14926.97816 | AH80: 616.5223264 | AI80: 99747.28098
A81: 2004 | B81: 1 | C81: 4 | D81: 7 | E81: 0.0453079377 | F81: 0.02906174078 | G81: 0.00203851515 | H81: 9.339100533e-06 | I81: 0.00325127601 | J81: 0.006778466084 | K81: 0.0038455252 | L81: 0.01636725668 | M81: 0.0006529150295 | N81: 0.1073129717 | O81: 45307.9377 | P81: 29061.74078 | Q81: 2038.51515 | R81: 9.339100533 | S81: 3251.27601 | T81: 6778.466084 | U81: 3845.5252 | V81: 16367.25668 | W81: 652.9150295 | X81: 107312.9717 | AA81: 44459.03529 | AB81: 33390.95231 | AC81: 1582.313512 | AD81: 7.736103451 | AE81: 6078.114849 | AF81: 2013.949618 | AG81: 14707.21128 | AH81: 616.5223264 | AI81: 102855.8353
A82: 2004 | B82: 1 | C82: 4 | D82: 8 | E82: 0.0505680716 | F82: 0.03095725958 | G82: 0.001698924848 | H82: 7.783326974e-06 | I82: 0.003375703404 | J82: 0.007154859182 | K82: 0.00428677128 | L82: 0.01652791067 | M82: 0.0005441478162 | N82: 0.1151214317 | O82: 50568.0716 | P82: 30957.25958 | Q82: 1698.924848 | R82: 7.783326974 | S82: 3375.703404 | T82: 7154.859182 | U82: 4286.77128 | V82: 16527.91067 | W82: 544.1478162 | X82: 115121.4317 | AA82: 49620.61383 | AB82: 35478.28223 | AC82: 1318.720512 | AD82: 6.447368507 | AE82: 6415.619006 | AF82: 2245.035706 | AG82: 14851.57097 | AH82: 513.8176675 | AI82: 110450.1073
A83: 2004 | B83: 1 | C83: 4 | D83: 9 | E83: 0.05800222951 | F83: 0.0319317818 | G83: 0 | H83: 0 | I83: 0.003633005031 | J83: 0.007269257987 | K83: 0.00440405416 | L83: 0.01606959032 | M83: 0 | N83: 0.1213099188 | O83: 58002.22951 | P83: 31931.7818 | Q83: 0 | R83: 0 | S83: 3633.005031 | T83: 7269.257987 | U83: 4404.05416 | V83: 16069.59032 | W83: 0 | X83: 121309.9188 | AA83: 56915.48325 | AB83: 36751.19871 | AC83: 0 | AD83: 0 | AE83: 6518.198125 | AF83: 2306.458216 | AG83: 14439.73566 | AH83: 0 | AI83: 116931.074
A84: 2004 | B84: 1 | C84: 4 | D84: 10 | E84: 0.06479295521 | F84: 0.03349310848 | G84: 0 | H84: 0 | I84: 0.003744274995 | J84: 0.00738630873 | K84: 0.0046072488 | L84: 0.01639484449 | M84: 0 | N84: 0.1304187407 | O84: 64792.95521 | P84: 33493.10848 | Q84: 0 | R84: 0 | S84: 3744.274995 | T84: 7386.30873 | U84: 4607.2488 | V84: 16394.84449 | W84: 0 | X84: 130418.7407 | AA84: 63578.97598 | AB84: 38479.59179 | AC84: 0 | AD84: 0 | AE84: 6623.155183 | AF84: 2412.873789 | AG84: 14732.001 | AH84: 0 | AI84: 125826.5977
A85: 2004 | B85: 1 | C85: 4 | D85: 11 | E85: 0.06621991 | F85: 0.03502399676 | G85: 0 | H85: 0 | I85: 0.003718366137 | J85: 0.007168248819 | K85: 0.0047343736 | L85: 0.01715726074 | M85: 0 | N85: 0.1340221561 | O85: 66219.91 | P85: 35023.99676 | Q85: 0 | R85: 0 | S85: 3718.366137 | T85: 7168.248819 | U85: 4734.3736 | V85: 17157.26074 | W85: 0 | X85: 134022.1561 | AA85: 64979.19494 | AB85: 40034.77608 | AC85: 0 | AD85: 0 | AE85: 6427.625226 | AF85: 2479.450636 | AG85: 15417.08935 | AH85: 0 | AI85: 129338.1362
A86: 2004 | B86: 1 | C86: 4 | D86: 12 | E86: 0.06997955943 | F86: 0.03624391392 | G86: 0 | H86: 0 | I86: 0.003679706097 | J86: 0.007148916863 | K86: 0.00550860464 | L86: 0.01716738864 | M86: 0 | N86: 0.1397280896 | O86: 69979.55943 | P86: 36243.91392 | Q86: 0 | R86: 0 | S86: 3679.706097 | T86: 7148.916863 | U86: 5508.60464 | V86: 17167.38864 | W86: 0 | X86: 139728.0896 | AA86: 68668.40251 | AB86: 41255.43896 | AC86: 0 | AD86: 0 | AE86: 6410.290647 | AF86: 2884.92511 | AG86: 15426.19003 | AH86: 0 | AI86: 134645.2472
A87: 2004 | B87: 1 | C87: 4 | D87: 13 | E87: 0.07075528663 | F87: 0.0359723582 | G87: 0 | H87: 0 | I87: 0.003691076662 | J87: 0.007430521192 | K87: 0.00592791144 | L87: 0.01674055377 | M87: 0 | N87: 0.1405177079 | O87: 70755.28663 | P87: 35972.3582 | Q87: 0 | R87: 0 | S87: 3691.076662 | T87: 7430.521192 | U87: 5927.91144 | V87: 16740.55377 | W87: 0 | X87: 140517.7079 | AA87: 69429.59546 | AB87: 40986.57424 | AC87: 0 | AD87: 0 | AE87: 6662.799612 | AF87: 3104.521323 | AG87: 15042.6468 | AH87: 0 | AI87: 135226.1374
A88: 2004 | B88: 1 | C88: 4 | D88: 14 | E88: 0.06779890531 | F88: 0.03593205799 | G88: 0 | H88: 0 | I88: 0.003672558611 | J88: 0.007655371347 | K88: 0.00648090432 | L88: 0.01724514191 | M88: 0 | N88: 0.1387849395 | O88: 67798.90531 | P88: 35932.05799 | Q88: 0 | R88: 0 | S88: 3672.558611 | T88: 7655.371347 | U88: 6480.90432 | V88: 17245.14191 | W88: 0 | X88: 138784.9395 | AA88: 66528.60574 | AB88: 40925.79385 | AC88: 0 | AD88: 0 | AE88: 6864.418246 | AF88: 3394.130607 | AG88: 15496.05719 | AH88: 0 | AI88: 133209.0056
A89: 2004 | B89: 1 | C89: 4 | D89: 15 | E89: 0.06514201663 | F89: 0.03581352104 | G89: 0 | H89: 0 | I89: 0.003661918938 | J89: 0.007631632812 | K89: 0.00718091088 | L89: 0.01799817005 | M89: 0 | N89: 0.1374281704 | O89: 65142.01663 | P89: 35813.52104 | Q89: 0 | R89: 0 | S89: 3661.918938 | T89: 7631.632812 | U89: 7180.91088 | V89: 17998.17005 | W89: 0 | X89: 137428.1704 | AA89: 63921.49729 | AB89: 40792.30801 | AC89: 0 | AD89: 0 | AE89: 6843.132376 | AF89: 3760.732793 | AG89: 16172.70962 | AH89: 0 | AI89: 131490.3801
A90: 2004 | B90: 1 | C90: 4 | D90: 16 | E90: 0.06951042097 | F90: 0.03602687375 | G90: 0 | H90: 0 | I90: 0.003651523051 | J90: 0.007670501297 | K90: 0.00763958536 | L90: 0.01791764987 | M90: 0 | N90: 0.1424165543 | O90: 69510.42097 | P90: 36026.87375 | Q90: 0 | R90: 0 | S90: 3651.523051 | T90: 7670.501297 | U90: 7639.58536 | V90: 17917.64987 | W90: 0 | X90: 142416.5543 | AA90: 68208.05396 | AB90: 41002.03531 | AC90: 0 | AD90: 0 | AE90: 6877.984968 | AF90: 4000.946351 | AG90: 16100.35618 | AH90: 0 | AI90: 136189.3768
A91: 2004 | B91: 1 | C91: 4 | D91: 17 | E91: 0.07686817371 | F91: 0.03639423784 | G91: 0.000305774656 | H91: 1.400853093e-06 | I91: 0.00370236609 | J91: 0.007899279571 | K91: 0.00760431848 | L91: 0.0166840982 | M91: 9.793641639e-05 | N91: 0.1495575858 | O91: 76868.17371 | P91: 36394.23784 | Q91: 305.774656 | R91: 1.400853093 | S91: 3702.36609 | T91: 7899.279571 | U91: 7604.31848 | V91: 16684.0982 | W91: 97.93641639 | X91: 149557.5858 | AA91: 75427.94975 | AB91: 41434.19348 | AC91: 237.3449959 | AD91: 1.160405588 | AE91: 7083.125867 | AF91: 3982.476646 | AG91: 14991.91722 | AH91: 92.47755763 | AI91: 143250.6459
A92: 2004 | B92: 1 | C92: 4 | D92: 18 | E92: 0.08764995828 | F92: 0.03687956121 | G92: 0.00203851515 | H92: 9.339100533e-06 | I92: 0.003580619131 | J92: 0.007926259019 | K92: 0.00729778368 | L92: 0.0158870821 | M92: 0.0006529150295 | N92: 0.1619220327 | O92: 87649.95828 | P92: 36879.56121 | Q92: 2038.51515 | R92: 9.339100533 | S92: 3580.619131 | T92: 7926.259019 | U92: 7297.78368 | V92: 15887.0821 | W92: 652.9150295 | X92: 161922.0327 | AA92: 86007.72374 | AB92: 41809.8985 | AC92: 1582.313512 | AD92: 7.736103451 | AE92: 7107.317798 | AF92: 3821.940539 | AG92: 14275.7383 | AH92: 616.5223264 | AI92: 155229.1908
A93: 2004 | B93: 1 | C93: 4 | D93: 19 | E93: 0.0900714953 | F93: 0.03487290607 | G93: 0.00203851515 | H93: 9.339100533e-06 | I93: 0.003436942577 | J93: 0.007700384182 | K93: 0.00790203656 | L93: 0.01294695493 | M93: 0.0006529150295 | N93: 0.1596314889 | O93: 90071.4953 | P93: 34872.90607 | Q93: 2038.51515 | R93: 9.339100533 | S93: 3436.942577 | T93: 7700.384182 | U93: 7902.03656 | V93: 12946.95493 | W93: 652.9150295 | X93: 159631.4889 | AA93: 88383.89015 | AB93: 39587.83351 | AC93: 1582.313512 | AD93: 7.736103451 | AE93: 6904.780353 | AF93: 4138.395326 | AG93: 11633.81288 | AH93: 616.5223264 | AI93: 152855.2842
A94: 2004 | B94: 1 | C94: 4 | D94: 20 | E94: 0.08731100055 | F94: 0.03403349133 | G94: 0.00203851515 | H94: 9.339100533e-06 | I94: 0.003293509808 | J94: 0.007599833641 | K94: 0.00810236064 | L94: 0.01317198201 | M94: 0.0006529150295 | N94: 0.1562129473 | O94: 87311.00055 | P94: 34033.49133 | Q94: 2038.51515 | R94: 9.339100533 | S94: 3293.509808 | T94: 7599.833641 | U94: 8102.36064 | V94: 13171.98201 | W94: 652.9150295 | X94: 156212.9473 | AA94: 85675.11682 | AB94: 38572.19902 | AC94: 1582.313512 | AD94: 7.736103451 | AE94: 6814.618696 | AF94: 4243.307551 | AG94: 11836.01664 | AH94: 616.5223264 | AI94: 149347.8307
A95: 2004 | B95: 1 | C95: 4 | D95: 21 | E95: 0.08462834538 | F95: 0.03303450186 | G95: 0.00203851515 | H95: 9.339100533e-06 | I95: 0.003203356976 | J95: 0.007548781396 | K95: 0.00910459616 | L95: 0.01326652 | M95: 0.0006529150295 | N95: 0.1534868711 | O95: 84628.34538 | P95: 33034.50186 | Q95: 2038.51515 | R95: 9.339100533 | S95: 3203.356976 | T95: 7548.781396 | U95: 9104.59616 | V95: 13266.52 | W95: 652.9150295 | X95: 153486.8711 | AA95: 83042.72464 | AB95: 37446.72383 | AC95: 1582.313512 | AD95: 7.736103451 | AE95: 6768.841169 | AF95: 4768.190821 | AG95: 11920.96613 | AH95: 616.5223264 | AI95: 146154.0185
A96: 2004 | B96: 1 | C96: 4 | D96: 22 | E96: 0.07831248704 | F96: 0.0321105451 | G96: 0.00203851515 | H96: 9.339100533e-06 | I96: 0.003145610206 | J96: 0.007155420728 | K96: 0.00944024664 | L96: 0.01317369698 | M96: 0.0006529150295 | N96: 0.146038776 | O96: 78312.48704 | P96: 32110.5451 | Q96: 2038.51515 | R96: 9.339100533 | S96: 3145.610206 | T96: 7155.420728 | U96: 9440.24664 | V96: 13173.69698 | W96: 652.9150295 | X96: 146038.776 | AA96: 76845.20202 | AB96: 36432.27149 | AC96: 1582.313512 | AD96: 7.736103451 | AE96: 6416.122533 | AF96: 4943.975173 | AG96: 11837.55767 | AH96: 616.5223264 | AI96: 138681.7008
A97: 2004 | B97: 1 | C97: 4 | D97: 23 | E97: 0.06955783177 | F97: 0.03137725313 | G97: 0.00203851515 | H97: 9.339100533e-06 | I97: 0.003044979914 | J97: 0.006861985251 | K97: 0.00902934648 | L97: 0.01340836032 | M97: 0.0006529150295 | N97: 0.1359805262 | O97: 69557.83177 | P97: 31377.25313 | Q97: 2038.51515 | R97: 9.339100533 | S97: 3044.979914 | T97: 6861.985251 | U97: 9029.34648 | V97: 13408.36032 | W97: 652.9150295 | X97: 135980.5262 | AA97: 68254.57646 | AB97: 35570.53027 | AC97: 1582.313512 | AD97: 7.736103451 | AE97: 6153.004814 | AF97: 4728.781623 | AG97: 12048.42033 | AH97: 616.5223264 | AI97: 128961.8854
A98: 2004 | B98: 1 | C98: 4 | D98: 24 | E98: 0.05681028379 | F98: 0.03127592278 | G98: 0.00203851515 | H98: 9.339100533e-06 | I98: 0.003012654679 | J98: 0.006562915898 | K98: 0.00899961568 | L98: 0.01617785601 | M98: 0.0006529150295 | N98: 0.1255400181 | O98: 56810.28379 | P98: 31275.92278 | Q98: 2038.51515 | R98: 9.339100533 | S98: 3012.654679 | T98: 6562.915898 | U98: 8999.61568 | V98: 16177.85601 | W98: 652.9150295 | X98: 125540.0181 | AA98: 55745.87016 | AB98: 35432.41604 | AC98: 1582.313512 | AD98: 7.736103451 | AE98: 5884.835313 | AF98: 4713.211231 | AG98: 14537.02053 | AH98: 616.5223264 | AI98: 118519.9252
A99: 2004 | B99: 1 | C99: 5 | D99: 1 | E99: 0.05729693303 | F99: 0.03476878184 | G99: 0.00203851515 | H99: 9.339100533e-06 | I99: 0.003086627058 | J99: 0.006751664181 | K99: 0.00873531912 | L99: 0.02064287528 | M99: 0.0006529150295 | N99: 0.1339829698 | O99: 57296.93303 | P99: 34768.78184 | Q99: 2038.51515 | R99: 9.339100533 | S99: 3086.627058 | T99: 6751.664181 | U99: 8735.31912 | V99: 20642.87528 | W99: 652.9150295 | X99: 133982.9698 | AA99: 56223.4014 | AB99: 39118.23403 | AC99: 1582.313512 | AD99: 7.736103451 | AE99: 6054.082119 | AF99: 4574.795819 | AG99: 18549.1762 | AH99: 616.5223264 | AI99: 126726.2615
A100: 2004 | B100: 1 | C100: 5 | D100: 2 | E100: 0.05265535163 | F100: 0.03397408611 | G100: 0.00203851515 | H100: 9.339100533e-06 | I100: 0.003076588668 | J100: 0.006942988917 | K100: 0.00994833576 | L100: 0.02128899439 | M100: 0.0006529150295 | N100: 0.1305871148 | O100: 52655.35163 | P100: 33974.08611 | Q100: 2038.51515 | R100: 9.339100533 | S100: 3076.588668 | T100: 6942.988917 | U100: 9948.33576 | V100: 21288.99439 | W100: 652.9150295 | X100: 130587.1148 | AA100: 51668.78599 | AB100: 38286.65465 | AC100: 1582.313512 | AD100: 7.736103451 | AE100: 6225.63918 | AF100: 5210.067796 | AG100: 19129.76283 | AH100: 616.5223264 | AI100: 122727.4824
A101: 2004 | B101: 1 | C101: 5 | D101: 3 | E101: 0.05200419837 | F101: 0.03324537288 | G101: 0.00203851515 | H101: 9.339100533e-06 | I101: 0.003107303913 | J101: 0.006942303659 | K101: 0.0096502076 | L101: 0.0206743444 | M101: 0.0006529150295 | N101: 0.1283245001 | O101: 52004.19837 | P101: 33245.37288 | Q101: 2038.51515 | R101: 9.339100533 | S101: 3107.303913 | T101: 6942.303659 | U101: 9650.2076 | V101: 20674.3444 | W101: 652.9150295 | X101: 128324.5001 | AA101: 51029.83292 | AB101: 37565.37203 | AC101: 1582.313512 | AD101: 7.736103451 | AE101: 6225.024724 | AF101: 5053.934352 | AG101: 18577.45358 | AH101: 616.5223264 | AI101: 120658.1895
A102: 2004 | B102: 1 | C102: 5 | D102: 4 | E102: 0.05104108467 | F102: 0.03334638585 | G102: 0.00203851515 | H102: 9.339100533e-06 | I102: 0.003124034357 | J102: 0.007058947105 | K102: 0.00974063024 | L102: 0.02063736635 | M102: 0.0006529150295 | N102: 0.1276492179 | O102: 51041.08467 | P102: 33346.38585 | Q102: 2038.51515 | R102: 9.339100533 | S102: 3124.034357 | T102: 7058.947105 | U102: 9740.63024 | V102: 20637.36635 | W102: 652.9150295 | X102: 127649.2179 | AA102: 50084.7644 | AB102: 37687.04326 | AC102: 1582.313512 | AD102: 7.736103451 | AE102: 6329.616566 | AF102: 5101.289819 | AG102: 18544.22601 | AH102: 616.5223264 | AI102: 119953.512
A103: 2004 | B103: 1 | C103: 5 | D103: 5 | E103: 0.05167058194 | F103: 0.03376545533 | G103: 0.00203851515 | H103: 9.339100533e-06 | I103: 0.003177657378 | J103: 0.007318184385 | K103: 0.01006315816 | L103: 0.02035056615 | M103: 0.0006529150295 | N103: 0.1290463726 | O103: 51670.58194 | P103: 33765.45533 | Q103: 2038.51515 | R103: 9.339100533 | S103: 3177.657378 | T103: 7318.184385 | U103: 10063.15816 | V103: 20350.56615 | W103: 652.9150295 | X103: 129046.3726 | AA103: 50702.46722 | AB103: 38175.5044 | AC103: 1582.313512 | AD103: 7.736103451 | AE103: 6562.069446 | AF103: 5270.201723 | AG103: 18286.51446 | AH103: 616.5223264 | AI103: 121203.3292
A104: 2004 | B104: 1 | C104: 5 | D104: 6 | E104: 0.0558174744 | F104: 0.0353141278 | G104: 0.00203851515 | H104: 9.339100533e-06 | I104: 0.003309784634 | J104: 0.007755584793 | K104: 0.01060118312 | L104: 0.02072726147 | M104: 0.0006529150295 | N104: 0.1362261855 | O104: 55817.4744 | P104: 35314.1278 | Q104: 2038.51515 | R104: 9.339100533 | S104: 3309.784634 | T104: 7755.584793 | U104: 10601.18312 | V104: 20727.26147 | W104: 652.9150295 | X104: 136226.1855 | AA104: 54771.66233 | AB104: 39912.37421 | AC104: 1582.313512 | AD104: 7.736103451 | AE104: 6954.277636 | AF104: 5551.97212 | AG104: 18625.00354 | AH104: 616.5223264 | AI104: 128021.8618
A105: 2004 | B105: 1 | C105: 5 | D105: 7 | E105: 0.06444050499 | F105: 0.0386974731 | G105: 0.00203851515 | H105: 9.339100533e-06 | I105: 0.003460014706 | J105: 0.008290285197 | K105: 0.01246089592 | L105: 0.0212810127 | M105: 0.0006529150295 | N105: 0.1513309559 | O105: 64440.50499 | P105: 38697.4731 | Q105: 2038.51515 | R105: 9.339100533 | S105: 3460.014706 | T105: 8290.285197 | U105: 12460.89592 | V105: 21281.0127 | W105: 652.9150295 | X105: 151330.9559 | AA105: 63233.12937 | AB105: 43563.82674 | AC105: 1582.313512 | AD105: 7.736103451 | AE105: 7433.732785 | AF105: 6525.92696 | AG105: 19122.59067 | AH105: 616.5223264 | AI105: 142085.7785
A106: 2004 | B106: 1 | C106: 5 | D106: 8 | E106: 0.07162314509 | F106: 0.04409387103 | G106: 0.001698924848 | H106: 7.783326974e-06 | I106: 0.003654430257 | J106: 0.008796259492 | K106: 0.01270386832 | L106: 0.02117486042 | M106: 0.0005441478162 | N106: 0.1642972906 | O106: 71623.14509 | P106: 44093.87103 | Q106: 1698.924848 | R106: 7.783326974 | S106: 3654.430257 | T106: 8796.259492 | U106: 12703.86832 | V106: 21174.86042 | W106: 544.1478162 | X106: 164297.2906 | AA106: 70281.19348 | AB106: 49341.14513 | AC106: 1318.720512 | AD106: 6.447368507 | AE106: 7887.429807 | AF106: 6653.174644 | AG106: 19027.20487 | AH106: 513.8176675 | AI106: 155029.1335
A107: 2004 | B107: 1 | C107: 5 | D107: 9 | E107: 0.07317391315 | F107: 0.04802207692 | G107: 0 | H107: 0 | I107: 0.003763563888 | J107: 0.009236050473 | K107: 0.01211089264 | L107: 0.02348237541 | M107: 0 | N107: 0.1697888725 | O107: 73173.91315 | P107: 48022.07692 | Q107: 0 | R107: 0 | S107: 3763.563888 | T107: 9236.050473 | U107: 12110.89264 | V107: 23482.37541 | W107: 0 | X107: 169788.8725 | AA107: 71802.90591 | AB107: 53513.16695 | AC107: 0 | AD107: 0 | AE107: 8281.781576 | AF107: 6342.625867 | AG107: 21100.68066 | AH107: 0 | AI107: 161041.161
A108: 2004 | B108: 1 | C108: 5 | D108: 10 | E108: 0.07183480493 | F108: 0.05021602214 | G108: 0 | H108: 0 | I108: 0.003787157835 | J108: 0.009476210678 | K108: 0.01167108184 | L108: 0.02455389842 | M108: 0 | N108: 0.1715391758 | O108: 71834.80493 | P108: 50216.02214 | Q108: 0 | R108: 0 | S108: 3787.157835 | T108: 9476.210678 | U108: 11671.08184 | V108: 24553.89842 | W108: 0 | X108: 171539.1758 | AA108: 70488.8876 | AB108: 55804.6814 | AC108: 0 | AD108: 0 | AE108: 8497.128424 | AF108: 6112.291454 | AG108: 22063.52468 | AH108: 0 | AI108: 162966.5136
A109: 2004 | B109: 1 | C109: 5 | D109: 11 | E109: 0.07338798541 | F109: 0.05073705302 | G109: 0 | H109: 0 | I109: 0.003728816198 | J109: 0.009234997937 | K109: 0.01123065592 | L109: 0.02376300539 | M109: 0 | N109: 0.1720825139 | O109: 73387.98541 | P109: 50737.05302 | Q109: 0 | R109: 0 | S109: 3728.816198 | T109: 9234.997937 | U109: 11230.65592 | V109: 23763.00539 | W109: 0 | X109: 172082.5139 | AA109: 72012.96725 | AB109: 56282.80557 | AC109: 0 | AD109: 0 | AE109: 8280.837788 | AF109: 5881.634894 | AG109: 21352.8478 | AH109: 0 | AI109: 163811.0933
A110: 2004 | B110: 1 | C110: 5 | D110: 12 | E110: 0.07298669667 | F110: 0.05117636664 | G110: 0 | H110: 0 | I110: 0.003720579827 | J110: 0.009169069597 | K110: 0.0118728412 | L110: 0.02417767393 | M110: 0 | N110: 0.1731032279 | O110: 72986.69667 | P110: 51176.36664 | Q110: 0 | R110: 0 | S110: 3720.579827 | T110: 9169.069597 | U110: 11872.8412 | V110: 24177.67393 | W110: 0 | X110: 173103.2279 | AA110: 71619.19717 | AB110: 56728.2632 | AC110: 0 | AD110: 0 | AE110: 8221.721165 | AF110: 6217.955353 | AG110: 21725.45868 | AH110: 0 | AI110: 164512.5956
A111: 2004 | B111: 1 | C111: 5 | D111: 13 | E111: 0.07295602673 | F111: 0.04998545786 | G111: 0 | H111: 0 | I111: 0.003771886077 | J111: 0.009230233591 | K111: 0.01152099256 | L111: 0.02324406274 | M111: 0 | N111: 0.1707086596 | O111: 72956.02673 | P111: 49985.45786 | Q111: 0 | R111: 0 | S111: 3771.886077 | T111: 9230.233591 | U111: 11520.99256 | V111: 23244.06274 | W111: 0 | X111: 170708.6596 | AA111: 71589.10187 | AB111: 55550.64447 | AC111: 0 | AD111: 0 | AE111: 8276.565694 | AF111: 6033.687822 | AG111: 20886.5388 | AH111: 0 | AI111: 162336.5387
A112: 2004 | B112: 1 | C112: 5 | D112: 14 | E112: 0.07222928484 | F112: 0.04932848325 | G112: 0 | H112: 0 | I112: 0.003733963996 | J112: 0.009132196146 | K112: 0.01196223864 | L112: 0.02224230222 | M112: 0 | N112: 0.1686284691 | O112: 72229.28484 | P112: 49328.48325 | Q112: 0 | R112: 0 | S112: 3733.963996 | T112: 9132.196146 | U112: 11962.23864 | V112: 22242.30222 | W112: 0 | X112: 168628.4691 | AA112: 70875.97643 | AB112: 54832.5666 | AC112: 0 | AD112: 0 | AE112: 8188.65748 | AF112: 6264.773909 | AG112: 19986.38162 | AH112: 0 | AI112: 160148.356
A113: 2004 | B113: 1 | C113: 5 | D113: 15 | E113: 0.07078482742 | F113: 0.04872840079 | G113: 0 | H113: 0 | I113: 0.003756099536 | J113: 0.009099899103 | K113: 0.01235817088 | L113: 0.02131245224 | M113: 0 | N113: 0.16603985 | O113: 70784.82742 | P113: 48728.40079 | Q113: 0 | R113: 0 | S113: 3756.099536 | T113: 9099.899103 | U113: 12358.17088 | V113: 21312.45224 | W113: 0 | X113: 166039.85 | AA113: 69458.58277 | AB113: 54235.33986 | AC113: 0 | AD113: 0 | AE113: 8159.697369 | AF113: 6472.128573 | AG113: 19150.84146 | AH113: 0 | AI113: 157476.59
A114: 2004 | B114: 1 | C114: 5 | D114: 16 | E114: 0.0710458145 | F114: 0.04866666308 | G114: 0 | H114: 0 | I114: 0.003742200367 | J114: 0.009232574711 | K114: 0.01248057976 | L114: 0.02205571076 | M114: 0 | N114: 0.1672235432 | O114: 71045.8145 | P114: 48666.66308 | Q114: 0 | R114: 0 | S114: 3742.200367 | T114: 9232.574711 | U114: 12480.57976 | V114: 22055.71076 | W114: 0 | X114: 167223.5432 | AA114: 69714.67992 | AB114: 54157.17979 | AC114: 0 | AD114: 0 | AE114: 8278.66493 | AF114: 6536.235633 | AG114: 19818.71515 | AH114: 0 | AI114: 158505.4754
A115: 2004 | B115: 1 | C115: 5 | D115: 17 | E115: 0.08331571524 | F115: 0.04903918609 | G115: 0.00027180202 | H115: 1.245213404e-06 | I115: 0.003805604232 | J115: 0.009179654449 | K115: 0.01206947456 | L115: 0.02172933155 | M115: 8.705533727e-05 | N115: 0.1794990687 | O115: 83315.71524 | P115: 49039.18609 | Q115: 271.80202 | R115: 1.245213404 | S115: 3805.604232 | T115: 9179.654449 | U115: 12069.47456 | V115: 21729.33155 | W115: 87.05533727 | X115: 179499.0687 | AA115: 81754.68831 | AB115: 54607.64882 | AC115: 210.9751349 | AD115: 1.03148046 | AE115: 8231.212391 | AF115: 6320.934701 | AG115: 19525.43888 | AH115: 82.20297685 | AI115: 170734.1327
A116: 2004 | B116: 1 | C116: 5 | D116: 18 | E116: 0.09705672927 | F116: 0.04835366583 | G116: 0.00203851515 | H116: 9.339100533e-06 | I116: 0.003833488419 | J116: 0.00907675468 | K116: 0.01204486976 | L116: 0.01884804414 | M116: 0.0006529150295 | N116: 0.1919143214 | O116: 97056.72927 | P116: 48353.66583 | Q116: 2038.51515 | R116: 9.339100533 | S116: 3833.488419 | T116: 9076.75468 | U116: 12044.86976 | V116: 18848.04414 | W116: 652.9150295 | X116: 191914.3214 | AA116: 95238.24679 | AB116: 53928.07455 | AC116: 1582.313512 | AD116: 7.736103451 | AE116: 8138.944227 | AF116: 6308.04886 | AG116: 16936.38542 | AH116: 616.5223264 | AI116: 182756.2718
A117: 2004 | B117: 1 | C117: 5 | D117: 19 | E117: 0.1007416863 | F117: 0.0485355786 | G117: 0.00203851515 | H117: 9.339100533e-06 | I117: 0.003867549442 | J117: 0.009114609489 | K117: 0.01007115472 | L117: 0.01874971192 | M117: 0.0006529150295 | N117: 0.1937810597 | O117: 100741.6863 | P117: 48535.5786 | Q117: 2038.51515 | R117: 9.339100533 | S117: 3867.549442 | T117: 9114.609489 | U117: 10071.15472 | V117: 18749.71192 | W117: 652.9150295 | X117: 193781.0597 | AA117: 98854.16138 | AB117: 54151.25306 | AC117: 1582.313512 | AD117: 7.736103451 | AE117: 8172.887877 | AF117: 5274.389621 | AG117: 16848.02652 | AH117: 616.5223264 | AI117: 185507.2904
A118: 2004 | B118: 1 | C118: 5 | D118: 20 | E118: 0.0940694115 | F118: 0.04796331372 | G118: 0.00203851515 | H118: 9.339100533e-06 | I118: 0.00386060009 | J118: 0.008876076882 | K118: 0.01230793608 | L118: 0.01966790167 | M118: 0.0006529150295 | N118: 0.1894460092 | O118: 94069.4115 | P118: 47963.31372 | Q118: 2038.51515 | R118: 9.339100533 | S118: 3860.60009 | T118: 8876.076882 | U118: 12307.93608 | V118: 19667.90167 | W118: 652.9150295 | X118: 189446.0092 | AA118: 92306.90026 | AB118: 53552.71672 | AC118: 1582.313512 | AD118: 7.736103451 | AE118: 7959.000463 | AF118: 6445.81998 | AG118: 17673.08907 | AH118: 616.5223264 | AI118: 180144.0984
A119: 2004 | B119: 1 | C119: 5 | D119: 21 | E119: 0.09078869202 | F119: 0.04690551916 | G119: 0.00203851515 | H119: 9.339100533e-06 | I119: 0.003851505665 | J119: 0.008548144 | K119: 0.01342109824 | L119: 0.01916689819 | M119: 0.0006529150295 | N119: 0.1853826266 | O119: 90788.69202 | P119: 46905.51916 | Q119: 2038.51515 | R119: 9.339100533 | S119: 3851.505665 | T119: 8548.144 | U119: 13421.09824 | V119: 19166.89819 | W119: 652.9150295 | X119: 185382.6266 | AA119: 89087.64927 | AB119: 52450.2372 | AC119: 1582.313512 | AD119: 7.736103451 | AE119: 7664.949612 | AF119: 7028.796918 | AG119: 17222.89977 | AH119: 616.5223264 | AI119: 175661.1047
A120: 2004 | B120: 1 | C120: 5 | D120: 22 | E120: 0.08580886429 | F120: 0.04434236155 | G120: 0.00203851515 | H120: 9.339100533e-06 | I120: 0.003699387725 | J120: 0.008177222293 | K120: 0.01319883488 | L120: 0.01866866829 | M120: 0.0006529150295 | N120: 0.1765961083 | O120: 85808.86429 | P120: 44342.36155 | Q120: 2038.51515 | R120: 9.339100533 | S120: 3699.387725 | T120: 8177.222293 | U120: 13198.83488 | V120: 18668.66829 | W120: 652.9150295 | X120: 176596.1083 | AA120: 84201.12501 | AB120: 49644.3823 | AC120: 1582.313512 | AD120: 7.736103451 | AE120: 7332.351542 | AF120: 6912.394818 | AG120: 16775.20272 | AH120: 616.5223264 | AI120: 167072.0283
A121: 2004 | B121: 1 | C121: 5 | D121: 23 | E121: 0.07489742144 | F121: 0.03968150293 | G121: 0.00203851515 | H121: 9.339100533e-06 | I121: 0.003520072544 | J121: 0.007828285003 | K121: 0.01277378696 | L121: 0.01794719208 | M121: 0.0006529150295 | N121: 0.1593490302 | O121: 74897.42144 | P121: 39681.50293 | Q121: 2038.51515 | R121: 9.339100533 | S121: 3520.072544 | T121: 7828.285003 | U121: 12773.78696 | V121: 17947.19208 | W121: 652.9150295 | X121: 159349.0302 | AA121: 73494.12206 | AB121: 44642.7443 | AC121: 1582.313512 | AD121: 7.736103451 | AE121: 7019.46646 | AF121: 6689.791909 | AG121: 16126.90207 | AH121: 616.5223264 | AI121: 150179.5987
A122: 2004 | B122: 1 | C122: 5 | D122: 24 | E122: 0.06229351757 | F122: 0.03748486332 | G122: 0.00203851515 | H122: 9.339100533e-06 | I122: 0.003357659225 | J122: 0.007210749064 | K122: 0.01325317048 | L122: 0.01814148204 | M122: 0.0006529150295 | N122: 0.144442211 | O122: 62293.51757 | P122: 37484.86332 | Q122: 2038.51515 | R122: 9.339100533 | S122: 3357.659225 | T122: 7210.749064 | U122: 13253.17048 | V122: 18141.48204 | W122: 652.9150295 | X122: 144442.211 | AA122: 61126.36852 | AB122: 42204.99532 | AC122: 1582.313512 | AD122: 7.736103451 | AE122: 6465.734344 | AF122: 6940.851051 | AG122: 16301.48622 | AH122: 616.5223264 | AI122: 135246.0074
A123: 2004 | B123: 1 | C123: 6 | D123: 1 | E123: 0.05569045347 | F123: 0.03689626599 | G123: 0.00203851515 | H123: 9.339100533e-06 | I123: 0.003456249198 | J123: 0.006922650497 | K123: 0.01334974432 | L123: 0.019749056 | M123: 0.0006529150295 | N123: 0.1387651888 | O123: 55690.45347 | P123: 36896.26599 | Q123: 2038.51515 | R123: 9.339100533 | S123: 3456.249198 | T123: 6922.650497 | U123: 13349.74432 | V123: 19749.056 | W123: 652.9150295 | X123: 138765.1888 | AA123: 54647.0213 | AB123: 41698.64172 | AC123: 1582.313512 | AD123: 7.736103451 | AE123: 6207.402126 | AF123: 6991.427979 | AG123: 17746.01235 | AH123: 616.5223264 | AI123: 129497.0774
A124: 2004 | B124: 1 | C124: 6 | D124: 2 | E124: 0.05198573053 | F124: 0.03678273968 | G124: 0.00203851515 | H124: 9.339100533e-06 | I124: 0.00343498665 | J124: 0.006764474865 | K124: 0.0128221764 | L124: 0.02056988882 | M124: 0.0006529150295 | N124: 0.1350607662 | O124: 51985.73053 | P124: 36782.73968 | Q124: 2038.51515 | R124: 9.339100533 | S124: 3434.98665 | T124: 6764.474865 | U124: 12822.1764 | V124: 20569.88882 | W124: 652.9150295 | X124: 135060.7662 | AA124: 51011.7111 | AB124: 41559.35642 | AC124: 1582.313512 | AD124: 7.736103451 | AE124: 6065.569204 | AF124: 6715.134064 | AG124: 18483.59238 | AH124: 616.5223264 | AI124: 126041.9351
A125: 2004 | B125: 1 | C125: 6 | D125: 3 | E125: 0.05200640048 | F125: 0.03595529876 | G125: 0.00203851515 | H125: 9.339100533e-06 | I125: 0.003416749265 | J125: 0.006708463354 | K125: 0.01164545184 | L125: 0.0199089339 | M125: 0.0006529150295 | N125: 0.1323420669 | O125: 52006.40048 | P125: 35955.29876 | Q125: 2038.51515 | R125: 9.339100533 | S125: 3416.749265 | T125: 6708.463354 | U125: 11645.45184 | V125: 19908.9339 | W125: 652.9150295 | X125: 132342.0669 | AA125: 51031.99377 | AB125: 40685.46699 | AC125: 1582.313512 | AD125: 7.736103451 | AE125: 6015.344803 | AF125: 6098.868702 | AG125: 17889.67466 | AH125: 616.5223264 | AI125: 123927.9209
A126: 2004 | B126: 1 | C126: 6 | D126: 4 | E126: 0.05085113407 | F126: 0.03596763558 | G126: 0.00203851515 | H126: 9.339100533e-06 | I126: 0.00344450598 | J126: 0.00682452188 | K126: 0.01136495712 | L126: 0.02052474332 | M126: 0.0006529150295 | N126: 0.1316782672 | O126: 50851.13407 | P126: 35967.63558 | Q126: 2038.51515 | R126: 9.339100533 | S126: 3444.50598 | T126: 6824.52188 | U126: 11364.95712 | V126: 20524.74332 | W126: 652.9150295 | X126: 131678.2672 | AA126: 49898.37277 | AB126: 40726.898 | AC126: 1582.313512 | AD126: 7.736103451 | AE126: 6119.412159 | AF126: 5951.970111 | AG126: 18443.02575 | AH126: 616.5223264 | AI126: 123346.2507
A127: 2004 | B127: 1 | C127: 6 | D127: 5 | E127: 0.05336009065 | F127: 0.03528164761 | G127: 0.00203851515 | H127: 9.339100533e-06 | I127: 0.003474131162 | J127: 0.006942532646 | K127: 0.01215723168 | L127: 0.01936368944 | M127: 0.0006529150295 | N127: 0.1332800925 | O127: 53360.09065 | P127: 35281.64761 | Q127: 2038.51515 | R127: 9.339100533 | S127: 3474.131162 | T127: 6942.532646 | U127: 12157.23168 | V127: 19363.68944 | W127: 652.9150295 | X127: 133280.0925 | AA127: 52360.32082 | AB127: 40048.63951 | AC127: 1582.313512 | AD127: 7.736103451 | AE127: 6225.230051 | AF127: 6366.894202 | AG127: 17399.73151 | AH127: 616.5223264 | AI127: 124607.388
A128: 2004 | B128: 1 | C128: 6 | D128: 6 | E128: 0.05664399652 | F128: 0.03791255257 | G128: 0.00203851515 | H128: 9.339100533e-06 | I128: 0.003560336902 | J128: 0.007448914427 | K128: 0.01200693736 | L128: 0.0211348712 | M128: 0.0006529150295 | N128: 0.1414083783 | O128: 56643.99652 | P128: 37912.55257 | Q128: 2038.51515 | R128: 9.339100533 | S128: 3560.336902 | T128: 7448.914427 | U128: 12006.93736 | V128: 21134.8712 | W128: 652.9150295 | X128: 141408.3783 | AA128: 55582.69849 | AB128: 42856.39077 | AC128: 1582.313512 | AD128: 7.736103451 | AE128: 6679.292458 | AF128: 6288.183188 | AG128: 18991.27155 | AH128: 616.5223264 | AI128: 132604.4084
A129: 2004 | B129: 1 | C129: 6 | D129: 7 | E129: 0.06517162945 | F129: 0.04214895728 | G129: 0.00203851515 | H129: 9.339100533e-06 | I129: 0.003638269174 | J129: 0.008092939298 | K129: 0.01136188152 | L129: 0.02281355649 | M129: 0.0006529150295 | N129: 0.1559280025 | O129: 65171.62945 | P129: 42148.95728 | Q129: 2038.51515 | R129: 9.339100533 | S129: 3638.269174 | T129: 8092.939298 | U129: 11361.88152 | V129: 22813.55649 | W129: 652.9150295 | X129: 155928.0025 | AA129: 63950.55527 | AB129: 47314.65047 | AC129: 1582.313512 | AD129: 7.736103451 | AE129: 7256.776667 | AF129: 5950.359381 | AG129: 20499.69655 | AH129: 616.5223264 | AI129: 147178.6103
A130: 2004 | B130: 1 | C130: 6 | D130: 8 | E130: 0.07446825564 | F130: 0.04553833298 | G130: 0.001698924848 | H130: 7.783326974e-06 | I130: 0.00380783469 | J130: 0.008804241247 | K130: 0.01165693408 | L130: 0.02132171846 | M130: 0.0005441478162 | N130: 0.1678481731 | O130: 74468.25564 | P130: 45538.33298 | Q130: 1698.924848 | R130: 7.783326974 | S130: 3807.83469 | T130: 8804.241247 | U130: 11656.93408 | V130: 21321.71846 | W130: 544.1478162 | X130: 167848.1731 | AA130: 73072.99722 | AB130: 50992.31502 | AC130: 1318.720512 | AD130: 6.447368507 | AE130: 7894.586887 | AF130: 6104.882095 | AG130: 19159.16786 | AH130: 513.8176675 | AI130: 159062.9346
A131: 2004 | B131: 1 | C131: 6 | D131: 9 | E131: 0.0736690521 | F131: 0.04972634498 | G131: 0 | H131: 0 | I131: 0.003863881839 | J131: 0.009261173121 | K131: 0.01221197736 | L131: 0.02433055803 | M131: 0 | N131: 0.1730629874 | O131: 73669.0521 | P131: 49726.34498 | Q131: 0 | R131: 0 | S131: 3863.881839 | T131: 9261.173121 | U131: 12211.97736 | V131: 24330.55803 | W131: 0 | X131: 173062.9874 | AA131: 72288.76779 | AB131: 55377.95246 | AC131: 0 | AD131: 0 | AE131: 8304.308552 | AF131: 6395.565199 | AG131: 21862.83654 | AH131: 0 | AI131: 164229.4305
A132: 2004 | B132: 1 | C132: 6 | D132: 10 | E132: 0.07071249436 | F132: 0.05217659246 | G132: 0 | H132: 0 | I132: 0.003873490086 | J132: 0.009395363468 | K132: 0.0111408484 | L132: 0.02649157343 | M132: 0 | N132: 0.1737903622 | O132: =E132*1000000*O$8826 -> 70712.49436 | P132: =F132*1000000*P$8826 -> 52176.59246 | Q132: =G132*1000000*Q$8826 -> 0 | R132: =H132*1000000*R$8826 -> 0 | S132: =I132*1000000*S$8826 -> 3873.490086 | T132: =J132*1000000*T$8826 -> 9395.363468 | U132: =K132*1000000*U$8826 -> 11140.8484 | V132: =L132*1000000*V$8826 -> 26491.57343 | W132: =M132*1000000*W$8826 -> 0 | X132: =SUM(O132:W132) -> 173790.3622 | AA132: =O132*AA$8826 -> 69387.60496 | AB132: =(P132+S132)*AB$8826 -> 57919.86694 | AC132: =Q132*AC$8826 -> 0 | AD132: =R132*AD$8826 -> 0 | AE132: =T132*AE$8826 -> 8424.634349 | AF132: =U132*AF$8826 -> 5834.601573 | AG132: =V132*AG$8826 -> 23804.67143 | AH132: =W132*AH$8826 -> 0 | AI132: =SUM(AA132:AH132) -> 165371.3793
A133: 2004 | B133: 1 | C133: 6 | D133: 11 | E133: 0.06850876791 | F133: 0.05362044381 | G133: 0 | H133: 0 | I133: 0.003841908048 | J133: 0.009479987296 | K133: 0.01203318248 | L133: 0.02715665486 | M133: 0 | N133: 0.1746409444 | O133: 68508.76791 | P133: 53620.44381 | Q133: 0 | R133: 0 | S133: 3841.908048 | T133: 9479.987296 | U133: 12033.18248 | V133: 27156.65486 | W133: 0 | X133: 174640.9444 | AA133: 67225.16816 | AB133: 59379.2484 | AC133: 0 | AD133: 0 | AE133: 8500.514842 | AF133: 6301.928085 | AG133: 24402.29712 | AH133: 0 | AI133: 165809.1566
A134: 2004 | B134: 1 | C134: 6 | D134: 12 | E134: 0.07001423018 | F134: 0.05287240906 | G134: 0 | H134: 0 | I134: 0.003816019273 | J134: 0.009518971933 | K134: 0.01288901944 | L134: 0.02655180062 | M134: 0 | N134: 0.1756624505 | O134: 70014.23018 | P134: 52872.40906 | Q134: 0 | R134: 0 | S134: 3816.019273 | T134: 9518.971933 | U134: 12889.01944 | V134: 26551.80062 | W134: 0 | X134: 175662.4505 | AA134: 68702.42366 | AB134: 58579.50742 | AC134: 0 | AD134: 0 | AE134: 8535.471586 | AF134: 6750.1406 | AG134: 23858.79009 | AH134: 0 | AI134: 166426.3334
A135: 2004 | B135: 1 | C135: 6 | D135: 13 | E135: 0.06954686141 | F135: 0.05140073695 | G135: 0 | H135: 0 | I135: 0.003832655871 | J135: 0.009520341032 | K135: 0.01357610848 | L135: 0.02443507724 | M135: 0 | N135: 0.172311781 | O135: 69546.86141 | P135: 51400.73695 | Q135: 0 | R135: 0 | S135: 3832.655871 | T135: 9520.341032 | U135: 13576.10848 | V135: 24435.07724 | W135: 0 | X135: 172311.781 | AA135: 68243.81164 | AB135: 57075.93312 | AC135: 0 | AD135: 0 | AE135: 8536.699229 | AF135: 7109.977719 | AG135: 21956.75491 | AH135: 0 | AI135: 162923.1766
A136: 2004 | B136: 1 | C136: 6 | D136: 14 | E136: 0.06679710641 | F136: 0.05163147409 | G136: 0 | H136: 0 | I136: 0.003782747066 | J136: 0.009456522046 | K136: 0.01332801008 | L136: 0.02528483437 | M136: 0 | N136: 0.1702806941 | O136: 66797.10641 | P136: 51631.47409 | Q136: 0 | R136: 0 | S136: 3782.747066 | T136: 9456.522046 | U136: 13328.01008 | V136: 25284.83437 | W136: 0 | X136: 170280.6941 | AA136: 65545.57683 | AB136: 57262.79374 | AC136: 0 | AD136: 0 | AE136: 8479.474022 | AF136: 6980.045485 | AG136: 22720.32561 | AH136: 0 | AI136: 160988.2157
A137: 2004 | B137: 1 | C137: 6 | D137: 15 | E137: 0.06506340966 | F137: 0.05162716854 | G137: 0 | H137: 0 | I137: 0.003795201961 | J137: 0.009454398656 | K137: 0.01303418776 | L137: 0.02634046245 | M137: 0 | N137: 0.169314829 | O137: 65063.40966 | P137: 51627.16854 | Q137: 0 | R137: 0 | S137: 3795.201961 | T137: 9454.398656 | U137: 13034.18776 | V137: 26340.46245 | W137: 0 | X137: 169314.829 | AA137: 63844.36312 | AB137: 57271.21495 | AC137: 0 | AD137: 0 | AE137: 8477.570021 | AF137: 6826.167063 | AG137: 23668.88685 | AH137: 0 | AI137: 160088.202
A138: 2004 | B138: 1 | C138: 6 | D138: 16 | E138: 0.06936699035 | F138: 0.05075760153 | G138: 0 | H138: 0 | I138: 0.003824827143 | J138: 0.00931675622 | K138: 0.01233356608 | L138: 0.02567860946 | M138: 0 | N138: 0.1712783508 | O138: 69366.99035 | P138: 50757.60153 | Q138: 0 | R138: 0 | S138: 3824.827143 | T138: 9316.75622 | U138: 12333.56608 | V138: 25678.60946 | W138: 0 | X138: 171278.3508 | AA138: 68067.31069 | AB138: 56403.25335 | AC138: 0 | AD138: 0 | AE138: 8354.148804 | AF138: 6459.242732 | AG138: 23074.16215 | AH138: 0 | AI138: 162358.1177
A139: 2004 | B139: 1 | C139: 6 | D139: 17 | E139: 0.0784722823 | F139: 0.05105295062 | G139: 0.000237829384 | H139: 1.089573716e-06 | I139: 0.003854452107 | J139: 0.009226136091 | K139: 0.01235796584 | L139: 0.02508168786 | M139: 7.617425815e-05 | N139: 0.180360568 | O139: 78472.2823 | P139: 51052.95062 | Q139: 237.829384 | R139: 1.089573716 | S139: 3854.452107 | T139: 9226.136091 | U139: 12357.96584 | V139: 25081.68786 | W139: 76.17425815 | X139: 180360.568 | AA139: 77002.00331 | AB139: 56739.06828 | AC139: 184.605274 | AD139: 0.9025553321 | AE139: 8272.891549 | AF139: 6472.021191 | AG139: 22537.7832 | AH139: 71.92839607 | AI139: 171281.2037
A140: 2004 | B140: 1 | C140: 6 | D140: 18 | E140: 0.09163149998 | F140: 0.05035626319 | G140: 0.00203851515 | H140: 9.339100533e-06 | I140: 0.003930338078 | J140: 0.009039011303 | K140: 0.01344939376 | L140: 0.02269975837 | M140: 0.0006529150295 | N140: 0.193807034 | O140: 91631.49998 | P140: 50356.26319 | Q140: 2038.51515 | R140: 9.339100533 | S140: 3930.338078 | T140: 9039.011303 | U140: 13449.39376 | V140: 22699.75837 | W140: 652.9150295 | X140: 193807.034 | AA140: 89914.66615 | AB140: 56097.55739 | AC140: 1582.313512 | AD140: 7.736103451 | AE140: 8105.100497 | AF140: 7043.615636 | AG140: 20397.44038 | AH140: 616.5223264 | AI140: 183764.952
A141: 2004 | B141: 1 | C141: 6 | D141: 19 | E141: 0.09680725292 | F141: 0.05102710263 | G141: 0.00203851515 | H141: 9.339100533e-06 | I141: 0.003918149873 | J141: 0.008887726501 | K141: 0.0126571192 | L141: 0.02236391948 | M141: 0.0006529150295 | N141: 0.1983620399 | O141: 96807.25292 | P141: 51027.10263 | Q141: 2038.51515 | R141: 9.339100533 | S141: 3918.149873 | T141: 8887.726501 | U141: 12657.1192 | V141: 22363.91948 | W141: 652.9150295 | X141: 198362.0399 | AA141: 94993.44471 | AB141: 56778.18069 | AC141: 1582.313512 | AD141: 7.736103451 | AE141: 7969.446443 | AF141: 6628.691545 | AG141: 20095.66387 | AH141: 616.5223264 | AI141: 188671.9992
A142: 2004 | B142: 1 | C142: 6 | D142: 20 | E142: 0.09556061846 | F142: 0.05076148817 | G142: 0.00203851515 | H142: 9.339100533e-06 | I142: 0.003902225261 | J142: 0.008673514689 | K142: 0.01175248272 | L142: 0.02324219165 | M142: 0.0006529150295 | N142: 0.1965932902 | O142: 95560.61846 | P142: 50761.48817 | Q142: 2038.51515 | R142: 9.339100533 | S142: 3902.225261 | T142: 8673.514689 | U142: 11752.48272 | V142: 23242.19165 | W142: 652.9150295 | X142: 196593.2902 | AA142: 93770.16754 | AB142: 56487.2497 | AC142: 1582.313512 | AD142: 7.736103451 | AE142: 7777.366999 | AF142: 6154.922112 | AG142: 20884.85748 | AH142: 616.5223264 | AI142: 187281.1358
A143: 2004 | B143: 1 | C143: 6 | D143: 21 | E143: 0.09276948919 | F143: 0.04913734125 | G143: 0.00203851515 | H143: 9.339100533e-06 | I143: 0.003888079951 | J143: 0.008540258895 | K143: 0.01055258864 | L143: 0.02214838825 | M143: 0.0006529150295 | N143: 0.1897369155 | O143: 92769.48919 | P143: 49137.34125 | Q143: 2038.51515 | R143: 9.339100533 | S143: 3888.079951 | T143: 8540.258895 | U143: 10552.58864 | V143: 22148.38825 | W143: 652.9150295 | X143: 189736.9155 | AA143: 91031.33367 | AB143: 54794.3054 | AC143: 1582.313512 | AD143: 7.736103451 | AE143: 7657.879196 | AF143: 5526.522583 | AG143: 19901.99285 | AH143: 616.5223264 | AI143: 181118.6056
A144: 2004 | B144: 1 | C144: 6 | D144: 22 | E144: 0.08957734938 | F144: 0.0468017059 | G144: 0.00203851515 | H144: 9.339100533e-06 | I144: 0.003746627717 | J144: 0.008363596513 | K144: 0.01059810752 | L144: 0.02231658834 | M144: 0.0006529150295 | N144: 0.1841047447 | O144: 89577.34938 | P144: 46801.7059 | Q144: 2038.51515 | R144: 9.339100533 | S144: 3746.627717 | T144: 8363.596513 | U144: 10598.10752 | V144: 22316.58834 | W144: 652.9150295 | X144: 184104.7447 | AA144: 87899.0027 | AB144: 52234.58422 | AC144: 1582.313512 | AD144: 7.736103451 | AE144: 7499.469575 | AF144: 5550.36139 | AG144: 20053.13328 | AH144: 616.5223264 | AI144: 175443.1231
A145: 2004 | B145: 1 | C145: 6 | D145: 23 | E145: 0.07980805991 | F145: 0.04163143058 | G145: 0.00203851515 | H145: 9.339100533e-06 | I145: 0.003519413771 | J145: 0.007829852297 | K145: 0.00970392808 | L145: 0.01970944541 | M145: 0.0006529150295 | N145: 0.1649028993 | O145: 79808.05991 | P145: 41631.43058 | Q145: 2038.51515 | R145: 9.339100533 | S145: 3519.413771 | T145: 7829.852297 | U145: 9703.92808 | V145: 19709.44541 | W145: 652.9150295 | X145: 164902.8993 | AA145: 78312.7534 | AB145: 46657.03918 | AC145: 1582.313512 | AD145: 7.736103451 | AE145: 7020.87182 | AF145: 5082.068439 | AG145: 17710.41925 | AH145: 616.5223264 | AI145: 156989.724
A146: 2004 | B146: 1 | C146: 6 | D146: 24 | E146: 0.06820843927 | F146: 0.03835114097 | G146: 0.00203851515 | H146: 9.339100533e-06 | I146: 0.003340951933 | J146: 0.007150904864 | K146: 0.01072010632 | L146: 0.01971223572 | M146: 0.0006529150295 | N146: 0.1501845484 | O146: 68208.43927 | P146: 38351.14097 | Q146: 2038.51515 | R146: 9.339100533 | S146: 3340.951933 | T146: 7150.904864 | U146: 10720.10632 | V146: 19712.23572 | W146: 652.9150295 | X146: 150184.5484 | AA146: 66930.46656 | AB146: 43082.90665 | AC146: 1582.313512 | AD146: 7.736103451 | AE146: 6412.073248 | AF146: 5614.253686 | AG146: 17712.92656 | AH146: 616.5223264 | AI146: 141959.1986
A147: 2004 | B147: 1 | C147: 7 | D147: 1 | E147: 0.05806654174 | F147: 0.03837950496 | G147: 0.00203851515 | H147: 9.339100533e-06 | I147: 0.003505430922 | J147: 0.006926636032 | K147: 0.01072543736 | L147: 0.02097136651 | M147: 0.0006529150295 | N147: 0.1412756868 | O147: 58066.54174 | P147: 38379.50496 | Q147: 2038.51515 | R147: 9.339100533 | S147: 3505.430922 | T147: 6926.636032 | U147: 10725.43736 | V147: 20971.36651 | W147: 652.9150295 | X147: 141275.6868 | AA147: 56978.5905 | AB147: 43282.1827 | AC147: 1582.313512 | AD147: 7.736103451 | AE147: 6210.975876 | AF147: 5617.045618 | AG147: 18844.35028 | AH147: 616.5223264 | AI147: 133139.7169
A148: 2004 | B148: 1 | C148: 7 | D148: 2 | E148: 0.05371850192 | F148: 0.03802185909 | G148: 0.00203851515 | H148: 9.339100533e-06 | I148: 0.00348386592 | J148: 0.006779506594 | K148: 0.01166923648 | L148: 0.0211304993 | M148: 0.0006529150295 | N148: 0.1375042386 | O148: 53718.50192 | P148: 38021.85909 | Q148: 2038.51515 | R148: 9.339100533 | S148: 3483.86592 | T148: 6779.506594 | U148: 11669.23648 | V148: 21130.4993 | W148: 652.9150295 | X148: 137504.2386 | AA148: 52712.01679 | AB148: 42890.32167 | AC148: 1582.313512 | AD148: 7.736103451 | AE148: 6079.047854 | AF148: 6111.325016 | AG148: 18987.34306 | AH148: 616.5223264 | AI148: 128986.6263
A149: 2004 | B149: 1 | C149: 7 | D149: 3 | E149: 0.0530324876 | F149: 0.03659255741 | G149: 0.00203851515 | H149: 9.339100533e-06 | I149: 0.003465368944 | J149: 0.006730131863 | K149: 0.01269464152 | L149: 0.01952039879 | M149: 0.0006529150295 | N149: 0.1347363554 | O149: 53032.4876 | P149: 36592.55741 | Q149: 2038.51515 | R149: 9.339100533 | S149: 3465.368944 | T149: 6730.131863 | U149: 12694.64152 | V149: 19520.39879 | W149: 652.9150295 | X149: 134736.3554 | AA149: 52038.85584 | AB149: 41394.22565 | AC149: 1582.313512 | AD149: 7.736103451 | AE149: 6034.774521 | AF149: 6648.342453 | AG149: 17540.54665 | AH149: 616.5223264 | AI149: 125863.317
A150: 2004 | B150: 1 | C150: 7 | D150: 4 | E150: 0.05154691976 | F150: 0.03668926537 | G150: 0.00203851515 | H150: 9.339100533e-06 | I150: 0.00349352078 | J150: 0.006826100213 | K150: 0.01295893808 | L150: 0.01984503673 | M150: 0.0006529150295 | N150: 0.1340605502 | O150: 51546.91976 | P150: 36689.26537 | Q150: 2038.51515 | R150: 9.339100533 | S150: 3493.52078 | T150: 6826.100213 | U150: 12958.93808 | V150: 19845.03673 | W150: 652.9150295 | X150: 134060.5502 | AA150: 50581.12201 | AB150: 41523.25066 | AC150: 1582.313512 | AD150: 7.736103451 | AE150: 6120.82742 | AF150: 6786.757865 | AG150: 17832.25826 | AH150: 616.5223264 | AI150: 125050.7882
A151: 2004 | B151: 1 | C151: 7 | D151: 5 | E151: 0.05428401448 | F151: 0.03617149115 | G151: 0.00203851515 | H151: 9.339100533e-06 | I151: 0.003523567303 | J151: 0.006950823447 | K151: 0.0132476344 | L151: 0.01881305753 | M151: 0.0006529150295 | N151: 0.1356913576 | O151: 54284.01448 | P151: 36171.49115 | Q151: 2038.51515 | R151: 9.339100533 | S151: 3523.567303 | T151: 6950.823447 | U151: 13247.6344 | V151: 18813.05753 | W151: 652.9150295 | X151: 135691.3576 | AA151: 53266.93375 | AB151: 41019.25278 | AC151: 1582.313512 | AD151: 7.736103451 | AE151: 6232.664246 | AF151: 6937.951737 | AG151: 16904.94731 | AH151: 616.5223264 | AI151: 126568.3218
A152: 2004 | B152: 1 | C152: 7 | D152: 6 | E152: 0.05754483618 | F152: 0.03860582449 | G152: 0.00203851515 | H152: 9.339100533e-06 | I152: 0.003610999782 | J152: 0.007447990712 | K152: 0.01348096992 | L152: 0.02057530156 | M152: 0.0006529150295 | N152: 0.1439666919 | O152: 57544.83618 | P152: 38605.82449 | Q152: 2038.51515 | R152: 9.339100533 | S152: 3610.999782 | T152: 7447.990712 | U152: 13480.96992 | V152: 20575.30156 | W152: 652.9150295 | X152: 143966.6919 | AA152: 56466.65977 | AB152: 43625.14262 | AC152: 1582.313512 | AD152: 7.736103451 | AE152: 6678.464181 | AF152: 7060.152466 | AG152: 18488.45613 | AH152: 616.5223264 | AI152: 134525.4471
A153: 2004 | B153: 1 | C153: 7 | D153: 7 | E153: 0.06603178175 | F153: 0.04266660744 | G153: 0.00203851515 | H153: 9.339100533e-06 | I153: 0.003690041239 | J153: 0.008197276642 | K153: 0.0133542552 | L153: 0.02210827367 | M153: 0.0006529150295 | N153: 0.1587490052 | O153: 66031.78175 | P153: 42666.60744 | Q153: 2038.51515 | R153: 9.339100533 | S153: 3690.041239 | T153: 8197.276642 | U153: 13354.2552 | V153: 22108.27367 | W153: 652.9150295 | X153: 158749.0052 | AA153: 64794.59151 | AB153: 47903.06814 | AC153: 1582.313512 | AD153: 7.736103451 | AE153: 7350.333876 | AF153: 6993.790383 | AG153: 19865.94688 | AH153: 616.5223264 | AI153: 149114.3027
A154: 2004 | B154: 1 | C154: 7 | D154: 8 | E154: 0.07572501582 | F154: 0.0463839646 | G154: 0.001664952212 | H154: 7.627687285e-06 | I154: 0.00386201954 | J154: 0.008793473978 | K154: 0.0129923596 | L154: 0.02092214464 | M154: 0.0005332667371 | N154: 0.1708848248 | O154: 75725.01582 | P154: 46383.9646 | Q154: 1664.952212 | R154: 7.627687285 | S154: 3862.01954 | T154: 8793.473978 | U154: 12992.3596 | V154: 20922.14464 | W154: 533.2667371 | X154: 170884.8248 | AA154: 74306.2104 | AB154: 51922.14861 | AC154: 1292.350651 | AD154: 6.318443379 | AE154: 7884.932093 | AF154: 6804.261133 | AG154: 18800.12072 | AH154: 503.5430868 | AI154: 161519.8851
A155: 2004 | B155: 1 | C155: 7 | D155: 9 | E155: 0.07499336408 | F155: 0.05073174809 | G155: 0 | H155: 0 | I155: 0.003918864215 | J155: 0.008857159201 | K155: 0.0136023536 | L155: 0.02409050157 | M155: 0 | N155: 0.1761939908 | O155: 74993.36408 | P155: 50731.74809 | Q155: 0 | R155: 0 | S155: 3918.864215 | T155: 8857.159201 | U155: 13602.3536 | V155: 24090.50157 | W155: 0 | X155: 176193.9908 | AA155: 73588.26709 | AB155: 56473.71153 | AC155: 0 | AD155: 0 | AE155: 7942.037357 | AF155: 7123.722616 | AG155: 21647.12776 | AH155: 0 | AI155: 166774.8663
A156: 2004 | B156: 1 | C156: 7 | D156: 10 | E156: 0.0716869568 | F156: 0.0523797542 | G156: 0 | H156: 0 | I156: 0.003928609139 | J156: 0.00887150304 | K156: 0.01416641864 | L156: 0.02590129086 | M156: 0 | N156: 0.1769345327 | O156: 71686.9568 | P156: 52379.7542 | Q156: 0 | R156: 0 | S156: 3928.609139 | T156: 8871.50304 | U156: 14166.41864 | V156: 25901.29086 | W156: 0 | X156: 176934.5327 | AA156: 70343.8096 | AB156: 58186.76377 | AC156: 0 | AD156: 0 | AE156: 7954.899191 | AF156: 7419.130529 | AG156: 23274.25814 | AH156: 0 | AI156: 167178.8612
A157: 2004 | B157: 1 | C157: 7 | D157: 11 | E157: 0.06981166139 | F157: 0.05406554499 | G157: 0 | H157: 0 | I157: 0.003896577587 | J157: 0.008964152929 | K157: 0.01404257448 | L157: 0.02701998644 | M157: 0 | N157: 0.1778004978 | O157: 69811.66139 | P157: 54065.54499 | Q157: 0 | R157: 0 | S157: 3896.577587 | T157: 8964.152929 | U157: 14042.57448 | V157: 27019.98644 | W157: 0 | X157: 177800.4978 | AA157: 68503.65026 | AB157: 59895.69105 | AC157: 0 | AD157: 0 | AE157: 8037.976491 | AF157: 7354.271794 | AG157: 24279.49027 | AH157: 0 | AI157: 168071.0799
A158: 2004 | B158: 1 | C158: 7 | D158: 12 | E158: 0.07185390758 | F158: 0.05361852431 | G158: 0 | H158: 0 | I158: 0.003870320685 | J158: 0.009149982821 | K158: 0.01321257256 | L158: 0.02713517766 | M158: 0 | N158: 0.1788404856 | O158: 71853.90758 | P158: 53618.52431 | Q158: 0 | R158: 0 | S158: 3870.320685 | T158: 9149.982821 | U158: 13212.57256 | V158: 27135.17766 | W158: 0 | X158: 178840.4856 | AA158: 70507.63234 | AB158: 59406.62532 | AC158: 0 | AD158: 0 | AE158: 8204.606436 | AF158: 6919.589413 | AG158: 24382.99824 | AH158: 0 | AI158: 169421.4518
A159: 2004 | B159: 1 | C159: 7 | D159: 13 | E159: 0.07140146032 | F159: 0.05237556806 | G159: 0 | H159: 0 | I159: 0.003887193942 | J159: 0.009398824278 | K159: 0.01334871912 | L159: 0.02501741937 | M159: 0 | N159: 0.1754291851 | O159: 71401.46032 | P159: 52375.56806 | Q159: 0 | R159: 0 | S159: 3887.193942 | T159: 9398.824278 | U159: 13348.71912 | V159: 25017.41937 | W159: 0 | X159: 175429.1851 | AA159: 70063.66226 | AB159: 58139.64122 | AC159: 0 | AD159: 0 | AE159: 8427.737589 | AF159: 6990.891068 | AG159: 22480.03312 | AH159: 0 | AI159: 166101.9653
A160: 2004 | B160: 1 | C160: 7 | D160: 14 | E160: 0.06866365579 | F160: 0.0527426861 | G160: 0 | H160: 0 | I160: 0.003836574854 | J160: 0.009499677878 | K160: 0.01258474008 | L160: 0.0260340161 | M160: 0 | N160: 0.1733613508 | O160: 68663.65579 | P160: 52742.6861 | Q160: 0 | R160: 0 | S160: 3836.574854 | T160: 9499.677878 | U160: 12584.74008 | V160: 26034.0161 | W160: 0 | X160: 173361.3508 | AA160: 67377.15401 | AB160: 58466.69831 | AC160: 0 | AD160: 0 | AE160: 8518.170993 | AF160: 6590.785695 | AG160: 23393.52175 | AH160: 0 | AI160: 164346.3308
A161: 2004 | B161: 1 | C161: 7 | D161: 15 | E161: 0.0665434118 | F161: 0.05246654242 | G161: 0 | H161: 0 | I161: 0.003849207087 | J161: 0.009469914423 | K161: 0.01336840296 | L161: 0.02668055358 | M161: 0 | N161: 0.1723780323 | O161: 66543.4118 | P161: 52466.54242 | Q161: 0 | R161: 0 | S161: 3849.207087 | T161: 9469.914423 | U161: 13368.40296 | V161: 26680.55358 | W161: 0 | X161: 172378.0323 | AA161: 65296.63552 | AB161: 58194.39634 | AC161: 0 | AD161: 0 | AE161: 8491.482698 | AF161: 7001.199742 | AG161: 23974.48431 | AH161: 0 | AI161: 162958.1986
A162: 2004 | B162: 1 | C162: 7 | D162: 16 | E162: 0.07093091687 | F162: 0.05162375287 | G162: 0 | H162: 0 | I162: 0.00387925364 | J162: 0.009319420383 | K162: 0.01259724752 | L162: 0.02602648359 | M162: 0 | N162: 0.1743770749 | O162: 70930.91687 | P162: 51623.75287 | Q162: 0 | R162: 0 | S162: 3879.25364 | T162: 9319.420383 | U162: 12597.24752 | V162: 26026.48359 | W162: 0 | X162: 174377.0749 | AA162: 69601.93505 | AB162: 57354.5409 | AC162: 0 | AD162: 0 | AE162: 8356.537706 | AF162: 6597.335998 | AG162: 23386.75322 | AH162: 0 | AI162: 165297.1029
A163: 2004 | B163: 1 | C163: 7 | D163: 17 | E163: 0.08040897698 | F163: 0.05150839565 | G163: 0.000203856748 | H163: 9.339340274e-07 | I163: 0.003909300411 | J163: 0.009239412 | K163: 0.0125545992 | L163: 0.02573283602 | M163: 6.529317902e-05 | N163: 0.1836236041 | O163: 80408.97698 | P163: 51508.39565 | Q163: 203.856748 | R163: 0.9339340274 | S163: 3909.300411 | T163: 9239.412 | U163: 12554.5992 | V163: 25732.83602 | W163: 65.29317902 | X163: 183623.6041 | AA163: 78902.41152 | AB163: 57266.38457 | AC163: 158.2354131 | AD163: 0.7736302042 | AE163: 8284.79579 | AF163: 6575.000539 | AG163: 23122.8888 | AH163: 61.65381529 | AI163: 174372.1441
A164: 2004 | B164: 1 | C164: 7 | D164: 18 | E164: 0.09379092702 | F164: 0.05114706053 | G164: 0.00203851515 | H164: 9.339100533e-06 | I164: 0.003986265814 | J164: 0.009009232017 | K164: 0.01317053936 | L164: 0.02350852246 | M164: 0.0006529150295 | N164: 0.1973133165 | O164: 93790.92702 | P164: 51147.06053 | Q164: 2038.51515 | R164: 9.339100533 | S164: 3986.265814 | T164: 9009.232017 | U164: 13170.53936 | V164: 23508.52246 | W164: 652.9150295 | X164: 197313.3165 | AA164: 92033.63354 | AB164: 56972.52852 | AC164: 1582.313512 | AD164: 7.736103451 | AE164: 8078.398007 | AF164: 6897.576101 | AG164: 21124.17574 | AH164: 616.5223264 | AI164: 187312.8839
A165: 2004 | B165: 1 | C165: 7 | D165: 19 | E165: 0.09882669187 | F165: 0.05188728995 | G165: 0.00203851515 | H165: 9.339100533e-06 | I165: 0.003973904516 | J165: 0.008867920556 | K165: 0.01273523944 | L165: 0.02295893311 | M165: 0.0006529150295 | N165: 0.2019507487 | O165: 98826.69187 | P165: 51887.28995 | Q165: 2038.51515 | R165: 9.339100533 | S165: 3973.904516 | T165: 8867.920556 | U165: 12735.23944 | V165: 22958.93311 | W165: 652.9150295 | X165: 201950.7487 | AA165: 96975.04687 | AB165: 57724.67771 | AC165: 1582.313512 | AD165: 7.736103451 | AE165: 7951.686849 | AF165: 6669.604091 | AG165: 20630.32838 | AH165: 616.5223264 | AI165: 192157.9158
A166: 2004 | B166: 1 | C166: 7 | D166: 20 | E166: 0.09773078598 | F166: 0.05178408656 | G166: 0.00203851515 | H166: 9.339100533e-06 | I166: 0.003957753134 | J166: 0.008690444918 | K166: 0.01132292392 | L166: 0.02396322637 | M166: 0.0006529150295 | N166: 0.2001499902 | O166: 97730.78598 | P166: 51784.08656 | Q166: 2038.51515 | R166: 9.339100533 | S166: 3957.753134 | T166: 8690.444918 | U166: 11322.92392 | V166: 23963.22637 | W166: 652.9150295 | X166: 200149.9902 | AA166: 95899.67419 | AB166: 57601.34137 | AC166: 1582.313512 | AD166: 7.736103451 | AE166: 7792.547997 | AF166: 5929.956799 | AG166: 21532.76141 | AH166: 616.5223264 | AI166: 190962.8537
A167: 2004 | B167: 1 | C167: 7 | D167: 21 | E167: 0.09438334283 | F167: 0.05009902547 | G167: 0.00203851515 | H167: 9.339100533e-06 | I167: 0.00394340659 | J167: 0.008520623179 | K167: 0.01132804992 | L167: 0.02219436198 | M167: 0.0006529150295 | N167: 0.1931695792 | O167: 94383.34283 | P167: 50099.02547 | Q167: 2038.51515 | R167: 9.339100533 | S167: 3943.40659 | T167: 8520.623179 | U167: 11328.04992 | V167: 22194.36198 | W167: 652.9150295 | X167: 193169.5792 | AA167: 92614.94969 | AB167: 55845.2429 | AC167: 1582.313512 | AD167: 7.736103451 | AE167: 7640.272243 | AF167: 5932.641349 | AG167: 19943.3037 | AH167: 616.5223264 | AI167: 184182.9818
A168: 2004 | B168: 1 | C168: 7 | D168: 22 | E168: 0.09084008396 | F168: 0.04722761541 | G168: 0.00203851515 | H168: 9.339100533e-06 | I168: 0.003799941435 | J168: 0.00831051616 | K168: 0.01269156592 | L168: 0.02186501784 | M168: 0.0006529150295 | N168: 0.18743551 | O168: 90840.08396 | P168: 47227.61541 | Q168: 2038.51515 | R168: 9.339100533 | S168: 3799.941435 | T168: 8310.51616 | U168: 12691.56592 | V168: 21865.01784 | W168: 652.9150295 | X168: 187435.51 | AA168: 89138.07832 | AB168: 52729.79394 | AC168: 1582.313512 | AD168: 7.736103451 | AE168: 7451.873485 | AF168: 6646.731723 | AG168: 19647.36322 | AH168: 616.5223264 | AI168: 177820.4126
A169: 2004 | B169: 1 | C169: 7 | D169: 23 | E169: 0.08024788934 | F169: 0.04205464601 | G169: 0.00203851515 | H169: 9.339100533e-06 | I169: 0.00356949449 | J169: 0.007795391044 | K169: 0.01305325648 | L169: 0.01846482312 | M169: 0.0006529150295 | N169: 0.1678862698 | O169: 80247.88934 | P169: 42054.64601 | Q169: 2038.51515 | R169: 9.339100533 | S169: 3569.49449 | T169: 7795.391044 | U169: 13053.25648 | V169: 18464.82312 | W169: 652.9150295 | X169: 167886.2698 | AA169: 78744.34207 | AB169: 47146.1241 | AC169: 1582.313512 | AD169: 7.736103451 | AE169: 6989.971105 | AF169: 6836.15359 | AG169: 16592.0325 | AH169: 616.5223264 | AI169: 158515.1953
A170: 2004 | B170: 1 | C170: 7 | D170: 24 | E170: 0.06864357281 | F170: 0.03891373763 | G170: 0.00203851515 | H170: 9.339100533e-06 | I170: 0.003388492922 | J170: 0.007184741285 | K170: 0.01351398136 | L170: 0.01855633988 | M170: 0.0006529150295 | N170: 0.1529016352 | O170: 68643.57281 | P170: 38913.73763 | Q170: 2038.51515 | R170: 9.339100533 | S170: 3388.492922 | T170: 7184.741285 | U170: 13513.98136 | V170: 18556.33988 | W170: 652.9150295 | X170: 152901.6352 | AA170: 67357.44731 | AB170: 43713.39798 | AC170: 1582.313512 | AD170: 7.736103451 | AE170: 6442.41369 | AF170: 7077.440969 | AG170: 16674.2672 | AH170: 616.5223264 | AI170: 143471.5391
A171: 2004 | B171: 1 | C171: 8 | D171: 1 | E171: 0.05578164524 | F171: 0.03695525965 | G171: 0.00203851515 | H171: 9.339100533e-06 | I171: 0.003461258212 | J171: 0.006894189545 | K171: 0.01352812912 | L171: 0.01969963828 | M171: 0.0006529150295 | N171: 0.1390208893 | O171: 55781.64524 | P171: 36955.25965 | Q171: 2038.51515 | R171: 9.339100533 | S171: 3461.258212 | T171: 6894.189545 | U171: 13528.12912 | V171: 19699.63828 | W171: 652.9150295 | X171: 139020.8893 | AA171: 54736.50448 | AB171: 41764.77947 | AC171: 1582.313512 | AD171: 7.736103451 | AE171: 6181.881761 | AF171: 7084.850328 | AG171: 17701.60681 | AH171: 616.5223264 | AI171: 129676.1948
A172: 2004 | B172: 1 | C172: 8 | D172: 2 | E172: 0.05203346039 | F172: 0.03682176211 | G172: 0.00203851515 | H172: 9.339100533e-06 | I172: 0.00343996492 | J172: 0.006794419351 | K172: 0.01304074904 | L172: 0.02047851496 | M172: 0.0006529150295 | N172: 0.13530964 | O172: 52033.46039 | P172: 36821.76211 | Q172: 2038.51515 | R172: 9.339100533 | S172: 3439.96492 | T172: 6794.419351 | U172: 13040.74904 | V172: 20478.51496 | W172: 652.9150295 | X172: 135309.64 | AA172: 51058.54668 | AB172: 41604.82495 | AC172: 1582.313512 | AD172: 7.736103451 | AE172: 6092.419824 | AF172: 6829.603288 | AG172: 18401.48609 | AH172: 616.5223264 | AI172: 126193.4528
A173: 2004 | B173: 1 | C173: 8 | D173: 3 | E173: 0.05207977815 | F173: 0.0359996752 | G173: 0.00203851515 | H173: 9.339100533e-06 | I173: 0.003421701067 | J173: 0.006765043909 | K173: 0.01178549416 | L173: 0.01983346185 | M173: 0.0006529150295 | N173: 0.1325859236 | O173: 52079.77815 | P173: 35999.6752 | Q173: 2038.51515 | R173: 9.339100533 | S173: 3421.701067 | T173: 6765.043909 | U173: 11785.49416 | V173: 19833.46185 | W173: 652.9150295 | X173: 132585.9236 | AA173: 51103.99662 | AB173: 40736.44078 | AC173: 1582.313512 | AD173: 7.736103451 | AE173: 6066.079454 | AF173: 6172.210616 | AG173: 17821.85735 | AH173: 616.5223264 | AI173: 124107.1568
A174: 2004 | B174: 1 | C174: 8 | D174: 4 | E174: 0.05090658694 | F174: 0.03600368495 | G174: 0.00203851515 | H174: 9.339100533e-06 | I174: 0.00344949798 | J174: 0.006850992756 | K174: 0.01157163744 | L174: 0.0204377399 | M174: 0.0006529150295 | N174: 0.1319209092 | O174: 50906.58694 | P174: 36003.68495 | Q174: 2038.51515 | R174: 9.339100533 | S174: 3449.49798 | T174: 6850.992756 | U174: 11571.63744 | V174: 20437.7399 | W174: 652.9150295 | X174: 131920.9092 | AA174: 49952.78665 | AB174: 40769.30849 | AC174: 1582.313512 | AD174: 7.736103451 | AE174: 6143.148065 | AF174: 6060.211178 | AG174: 18364.84663 | AH174: 616.5223264 | AI174: 123496.873
A175: 2004 | B175: 1 | C175: 8 | D175: 5 | E175: 0.05371968391 | F175: 0.03547413576 | G175: 0.00203851515 | H175: 9.339100533e-06 | I175: 0.003479165962 | J175: 0.006867713686 | K175: 0.01167046672 | L175: 0.01961375276 | M175: 0.0006529150295 | N175: 0.1335256881 | O175: 53719.68391 | P175: 35474.13576 | Q175: 2038.51515 | R175: 9.339100533 | S175: 3479.165962 | T175: 6867.713686 | U175: 11670.46672 | V175: 19613.75276 | W175: 652.9150295 | X175: 133525.6881 | AA175: 52713.17663 | AB175: 40252.75165 | AC175: 1582.313512 | AD175: 7.736103451 | AE175: 6158.141387 | AF175: 6111.969308 | AG175: 17624.43221 | AH175: 616.5223264 | AI175: 125067.0431
A176: 2004 | B176: 1 | C176: 8 | D176: 6 | E176: 0.05665618887 | F176: 0.037921831 | G176: 0.00203851515 | H176: 9.339100533e-06 | I176: 0.003565496787 | J176: 0.007212783271 | K176: 0.01262574808 | L176: 0.02098613459 | M176: 0.0006529150295 | N176: 0.1416689519 | O176: 56656.18887 | P176: 37921.831 | Q176: 2038.51515 | R176: 9.339100533 | S176: 3565.496787 | T176: 7212.783271 | U176: 12625.74808 | V176: 20986.13459 | W176: 652.9150295 | X176: 141668.9519 | AA176: 55594.66241 | AB176: 42871.31073 | AC176: 1582.313512 | AD176: 7.736103451 | AE176: 6467.558377 | AF176: 6612.262097 | AG176: 18857.62051 | AH176: 616.5223264 | AI176: 132609.9861
A177: 2004 | B177: 1 | C177: 8 | D177: 7 | E177: 0.06446902863 | F177: 0.04177456838 | G177: 0.00203851515 | H177: 9.339100533e-06 | I177: 0.003643542057 | J177: 0.00783145325 | K177: 0.01396547944 | L177: 0.02183050144 | M177: 0.0006529150295 | N177: 0.1562153425 | O177: 64469.02863 | P177: 41774.56838 | Q177: 2038.51515 | R177: 9.339100533 | S177: 3643.542057 | T177: 7831.45325 | U177: 13965.47944 | V177: 21830.50144 | W177: 652.9150295 | X177: 156215.3425 | AA177: 63261.11858 | AB177: 46933.22104 | AC177: 1582.313512 | AD177: 7.736103451 | AE177: 7022.307363 | AF177: 7313.896158 | AG177: 19616.34764 | AH177: 616.5223264 | AI177: 146353.4627
A178: 2004 | B178: 1 | C178: 8 | D178: 8 | E178: 0.07403097156 | F178: 0.04530798708 | G178: 0.001664952212 | H178: 7.627687285e-06 | I178: 0.00381335328 | J178: 0.008464228127 | K178: 0.0137058988 | L178: 0.02062916694 | M178: 0.0005332667371 | N178: 0.1681574524 | O178: 74030.97156 | P178: 45307.98708 | Q178: 1664.952212 | R178: 7.627687285 | S178: 3813.35328 | T178: 8464.228127 | U178: 13705.8988 | V178: 20629.16694 | W178: 533.2667371 | X178: 168157.4524 | AA178: 72643.90623 | AB178: 50759.98765 | AC178: 1292.350651 | AD178: 6.318443379 | AE178: 7589.703929 | AF178: 7177.950532 | AG178: 18536.85822 | AH178: 503.5430868 | AI178: 158510.6187
A179: 2004 | B179: 1 | C179: 8 | D179: 9 | E179: 0.07385891351 | F179: 0.04982728322 | G179: 0 | H179: 0 | I179: 0.003869481753 | J179: 0.008802657995 | K179: 0.0126540436 | L179: 0.02436950529 | M179: 0 | N179: 0.1733818854 | O179: 73858.91351 | P179: 49827.28322 | Q179: 0 | R179: 0 | S179: 3869.481753 | T179: 8802.657995 | U179: 12654.0436 | V179: 24369.50529 | W179: 0 | X179: 173381.8854 | AA179: 72475.07191 | AB179: 55488.04465 | AC179: 0 | AD179: 0 | AE179: 7893.167217 | AF179: 6627.080815 | AG179: 21897.83358 | AH179: 0 | AI179: 164381.1982
A180: 2004 | B180: 1 | C180: 8 | D180: 10 | E180: 0.07026724097 | F180: 0.05193999488 | G180: 0 | H180: 0 | I180: 0.00387910373 | J180: 0.009046478002 | K180: 0.01317423008 | L180: 0.02580356414 | M180: 0 | N180: 0.1741106118 | O180: 70267.24097 | P180: 51939.99488 | Q180: 0 | R180: 0 | S180: 3879.10373 | T180: 9046.478002 | U180: 13174.23008 | V180: 25803.56414 | W180: 0 | X180: 174110.6118 | AA180: 68950.69397 | AB180: 57681.17758 | AC180: 0 | AD180: 0 | AE180: 8111.795736 | AF180: 6899.508977 | AG180: 23186.44333 | AH180: 0 | AI180: 164829.6196
A181: 2004 | B181: 1 | C181: 8 | D181: 11 | E181: 0.06811445704 | F181: 0.05341656702 | G181: 0 | H181: 0 | I181: 0.003847476009 | J181: 0.009148762035 | K181: 0.01390048176 | L181: 0.02653501783 | M181: 0 | N181: 0.1749627617 | O181: 68114.45704 | P181: 53416.56702 | Q181: 0 | R181: 0 | S181: 3847.476009 | T181: 9148.762035 | U181: 13900.48176 | V181: 26535.01783 | W181: 0 | X181: 174962.7617 | AA181: 66838.24521 | AB181: 59174.32414 | AC181: 0 | AD181: 0 | AE181: 8203.511782 | AF181: 7279.85606 | AG181: 23843.70949 | AH181: 0 | AI181: 165339.6467
A182: 2004 | B182: 1 | C182: 8 | D182: 12 | E182: 0.07020784254 | F182: 0.05298400895 | G182: 0 | H182: 0 | I182: 0.003821549919 | J182: 0.009215362891 | K182: 0.0131389632 | L182: 0.02661841254 | M182: 0 | N182: 0.17598614 | O182: 70207.84254 | P182: 52984.00895 | Q182: 0 | R182: 0 | S182: 3821.549919 | T182: 9215.362891 | U182: 13138.9632 | V182: 26618.41254 | W182: 0 | X182: 175986.14 | AA182: 68892.40844 | AB182: 58700.54533 | AC182: 0 | AD182: 0 | AE182: 8263.231435 | AF182: 6881.039271 | AG182: 23918.64592 | AH182: 0 | AI182: 166655.8704
A183: 2004 | B183: 1 | C183: 8 | D183: 13 | E183: 0.06989001305 | F183: 0.05158298342 | G183: 0 | H183: 0 | I183: 0.003838210382 | J183: 0.009188836744 | K183: 0.01345698024 | L183: 0.0246722692 | M183: 0 | N183: 0.172629293 | O183: 69890.01305 | P183: 51582.98342 | Q183: 0 | R183: 0 | S183: 3838.210382 | T183: 9188.836744 | U183: 13456.98024 | V183: 24672.2692 | W183: 0 | X183: 172629.293 | AA183: 68580.53389 | AB183: 57269.99899 | AC183: 0 | AD183: 0 | AE183: 8239.445971 | AF183: 7047.58877 | AG183: 22169.88973 | AH183: 0 | AI183: 163307.4574
A184: 2004 | B184: 1 | C184: 8 | D184: 14 | E184: 0.06690473782 | F184: 0.0516992753 | G184: 0 | H184: 0 | I184: 0.003788229458 | J184: 0.009160386777 | K184: 0.01377581744 | L184: 0.02526603015 | M184: 0 | N184: 0.1705944769 | O184: 66904.73782 | P184: 51699.2753 | Q184: 0 | R184: 0 | S184: 3788.229458 | T184: 9160.386777 | U184: 13775.81744 | V184: 25266.03015 | W184: 0 | X184: 170594.4769 | AA184: 65651.19163 | AB184: 57338.52203 | AC184: 0 | AD184: 0 | AE184: 8213.935455 | AF184: 7214.567798 | AG184: 22703.42861 | AH184: 0 | AI184: 161121.6455
A185: 2004 | B185: 1 | C185: 8 | D185: 15 | E185: 0.06546732975 | F185: 0.05185612089 | G185: 0 | H185: 0 | I185: 0.003800702328 | J185: 0.009111660938 | K185: 0.01272396224 | L185: 0.02666705206 | M185: 0 | N185: 0.1696268282 | O185: 65467.32975 | P185: 51856.12089 | Q185: 0 | R185: 0 | S185: 3800.702328 | T185: 9111.660938 | U185: 12723.96224 | V185: 26667.05206 | W185: 0 | X185: 169626.8282 | AA185: 64240.71525 | AB185: 57513.48881 | AC185: 0 | AD185: 0 | AE185: 8170.24397 | AF185: 6663.698081 | AG185: 23962.35218 | AH185: 0 | AI185: 160550.4983
A186: 2004 | B186: 1 | C186: 8 | D186: 16 | E186: 0.06901589691 | F186: 0.05056713847 | G186: 0 | H186: 0 | I186: 0.00383037031 | J186: 0.008949544181 | K186: 0.01410552176 | L186: 0.02512549887 | M186: 0 | N186: 0.1715939705 | O186: 69015.89691 | P186: 50567.13847 | Q186: 0 | R186: 0 | S186: 3830.37031 | T186: 8949.544181 | U186: 14105.52176 | V186: 25125.49887 | W186: 0 | X186: 171593.9705 | AA186: 67722.79545 | AB186: 56212.16469 | AC186: 0 | AD186: 0 | AE186: 8024.877119 | AF186: 7387.238071 | AG186: 22577.15068 | AH186: 0 | AI186: 161924.226
A187: 2004 | B187: 1 | C187: 8 | D187: 17 | E187: 0.07833908967 | F187: 0.0509864262 | G187: 0.00013590101 | H187: 6.226067022e-07 | I187: 0.003860038292 | J187: 0.008865738624 | K187: 0.0136946216 | L187: 0.02476695668 | M187: 4.352766863e-05 | N187: 0.1806929224 | O187: 78339.08967 | P187: 50986.4262 | Q187: 135.90101 | R187: 0.6226067022 | S187: 3860.038292 | T187: 8865.738624 | U187: 13694.6216 | V187: 24766.95668 | W187: 43.52766863 | X187: 180692.9224 | AA187: 76871.30621 | AB187: 56676.09719 | AC187: 105.4875675 | AD187: 0.5157402301 | AE187: 7949.730354 | AF187: 7172.044521 | AG187: 22254.97356 | AH187: 41.10148843 | AI187: 171071.2566
A188: 2004 | B188: 1 | C188: 8 | D188: 18 | E188: 0.09163408633 | F188: 0.05035736374 | G188: 0.00203851515 | H188: 9.339100533e-06 | I188: 0.003936034007 | J188: 0.008810106198 | K188: 0.01419430408 | L188: 0.02253149245 | M188: 0.0006529150295 | N188: 0.1941641561 | O188: 91634.08633 | P188: 50357.36374 | Q188: 2038.51515 | R188: 9.339100533 | S188: 3936.034007 | T188: 8810.106198 | U188: 14194.30408 | V188: 22531.49245 | W188: 652.9150295 | X188: 194164.1561 | AA188: 89917.20403 | AB188: 56104.58059 | AC188: 1582.313512 | AD188: 7.736103451 | AE188: 7899.845871 | AF188: 7433.734482 | AG188: 20246.24079 | AH188: 616.5223264 | AI188: 183808.1777
A189: 2004 | B189: 1 | C189: 8 | D189: 19 | E189: 0.09668540508 | F189: 0.05096589627 | G189: 0.00203851515 | H189: 9.339100533e-06 | I189: 0.003923828291 | J189: 0.008572619004 | K189: 0.01383220344 | L189: 0.02204683389 | M189: 0.0006529150295 | N189: 0.1987275553 | O189: 96685.40508 | P189: 50965.89627 | Q189: 2038.51515 | R189: 9.339100533 | S189: 3923.828291 | T189: 8572.619004 | U189: 13832.20344 | V189: 22046.83389 | W189: 652.9150295 | X189: 198727.5553 | AA189: 94873.87984 | AB189: 56720.80038 | AC189: 1582.313512 | AD189: 7.736103451 | AE189: 7686.895858 | AF189: 7244.097851 | AG189: 19810.73862 | AH189: 616.5223264 | AI189: 188542.9845
A190: 2004 | B190: 1 | C190: 8 | D190: 20 | E190: 0.09557215009 | F190: 0.05077083418 | G190: 0.00203851515 | H190: 9.339100533e-06 | I190: 0.003907880496 | J190: 0.00835209944 | K190: 0.01257776872 | L190: 0.02307404407 | M190: 0.0006529150295 | N190: 0.1969555463 | O190: 95572.15009 | P190: 50770.83418 | Q190: 2038.51515 | R190: 9.339100533 | S190: 3907.880496 | T190: 8352.09944 | U190: 12577.76872 | V190: 23074.04407 | W190: 652.9150295 | X190: 196955.5463 | AA190: 93781.48312 | AB190: 56502.75138 | AC190: 1582.313512 | AD190: 7.736103451 | AE190: 7489.16038 | AF190: 6587.134707 | AG190: 20733.76423 | AH190: 616.5223264 | AI190: 187300.8658
A191: 2004 | B191: 1 | C191: 8 | D191: 21 | E191: 0.09227078532 | F191: 0.04886519477 | G191: 0.00203851515 | H191: 9.339100533e-06 | I191: 0.003893714855 | J191: 0.00823259331 | K191: 0.0127350344 | L191: 0.0213884519 | M191: 0.0006529150295 | N191: 0.1900865438 | O191: 92270.78532 | P191: 48865.19477 | Q191: 2038.51515 | R191: 9.339100533 | S191: 3893.714855 | T191: 8232.59331 | U191: 12735.0344 | V191: 21388.4519 | W191: 652.9150295 | X191: 190086.5438 | AA191: 90541.97365 | AB191: 54518.90322 | AC191: 1582.313512 | AD191: 7.736103451 | AE191: 7382.001625 | AF191: 6669.496709 | AG191: 19219.13287 | AH191: 616.5223264 | AI191: 180538.08
A192: 2004 | B192: 1 | C192: 8 | D192: 22 | E192: 0.08849073204 | F192: 0.04621011644 | G192: 0.00203851515 | H192: 9.339100533e-06 | I192: 0.003752057607 | J192: 0.008083633626 | K192: 0.014337422 | L192: 0.02086926674 | M192: 0.0006529150295 | N192: 0.1844439977 | O192: 88490.73204 | P192: 46210.11644 | Q192: 2038.51515 | R192: 9.339100533 | S192: 3752.057607 | T192: 8083.633626 | U192: 14337.422 | V192: 20869.26674 | W192: 652.9150295 | X192: 184443.9977 | AA192: 86832.74453 | AB192: 51628.87086 | AC192: 1582.313512 | AD192: 7.736103451 | AE192: 7248.432458 | AF192: 7508.687126 | AG192: 18752.60595 | AH192: 616.5223264 | AI192: 174177.9129
A193: 2004 | B193: 1 | C193: 8 | D193: 23 | E193: 0.07874944833 | F193: 0.04104760848 | G193: 0.00203851515 | H193: 9.339100533e-06 | I193: 0.003524514553 | J193: 0.007796687692 | K193: 0.0130774512 | L193: 0.01831029603 | M193: 0.0006529150295 | N193: 0.1652067756 | O193: 78749.44833 | P193: 41047.60848 | Q193: 2038.51515 | R193: 9.339100533 | S193: 3524.514553 | T193: 7796.687692 | U193: 13077.4512 | V193: 18310.29603 | W193: 652.9150295 | X193: 165206.7756 | AA193: 77273.97628 | AB193: 46059.01219 | AC193: 1582.313512 | AD193: 7.736103451 | AE193: 6991.133783 | AF193: 6848.824668 | AG193: 16453.17829 | AH193: 616.5223264 | AI193: 155832.6972
A194: 2004 | B194: 1 | C194: 8 | D194: 24 | E194: 0.06741428292 | F194: 0.03792403067 | G194: 0.00203851515 | H194: 9.339100533e-06 | I194: 0.003345793774 | J194: 0.007205865859 | K194: 0.01324291848 | L194: 0.01862762777 | M194: 0.0006529150295 | N194: 0.1504612888 | O194: 67414.28292 | P194: 37924.03067 | Q194: 2038.51515 | R194: 9.339100533 | S194: 3345.793774 | T194: 7205.865859 | U194: 13242.91848 | V194: 18627.62777 | W194: 652.9150295 | X194: 150461.2888 | AA194: 66151.18975 | AB194: 42646.55165 | AC194: 1582.313512 | AD194: 7.736103451 | AE194: 6461.355672 | AF194: 6935.481951 | AG194: 16738.32473 | AH194: 616.5223264 | AI194: 141139.4757
A195: 2004 | B195: 1 | C195: 9 | D195: 1 | E195: 0.05640981653 | F195: 0.03671790383 | G195: 0.00203851515 | H195: 9.339100533e-06 | I195: 0.003302924416 | J195: 0.007036693117 | K195: 0.0130364432 | L195: 0.02013366094 | M195: 0.0006529150295 | N195: 0.1393382113 | O195: 56409.81653 | P195: 36717.90383 | Q195: 2038.51515 | R195: 9.339100533 | S195: 3302.924416 | T195: 7036.693117 | U195: 13036.4432 | V195: 20133.66094 | W195: 652.9150295 | X195: 139338.2113 | AA195: 55352.90617 | AB195: 41355.88998 | AC195: 1582.313512 | AD195: 7.736103451 | AE195: 6309.66186 | AF195: 6827.348266 | AG195: 18091.60882 | AH195: 616.5223264 | AI195: 130143.987
A196: 2004 | B196: 1 | C196: 9 | D196: 2 | E196: 0.05100747081 | F196: 0.03594973908 | G196: 0.00203851515 | H196: 9.339100533e-06 | I196: 0.003260623953 | J196: 0.006932668153 | K196: 0.01322261952 | L196: 0.02035149248 | M196: 0.0006529150295 | N196: 0.1334253833 | O196: =E196*1000000*O$8826 -> 51007.47081 | P196: =F196*1000000*P$8826 -> 35949.73908 | Q196: =G196*1000000*Q$8826 -> 2038.51515 | R196: =H196*1000000*R$8826 -> 9.339100533 | S196: =I196*1000000*S$8826 -> 3260.623953 | T196: =J196*1000000*T$8826 -> 6932.668153 | U196: =K196*1000000*U$8826 -> 13222.61952 | V196: =L196*1000000*V$8826 -> 20351.49248 | W196: =M196*1000000*W$8826 -> 652.9150295 | X196: =SUM(O196:W196) -> 133425.3833 | AA196: =O196*AA$8826 -> 50051.78033 | AB196: =(P196+S196)*AB$8826 -> 40518.38832 | AC196: =Q196*AC$8826 -> 1582.313512 | AD196: =R196*AD$8826 -> 7.736103451 | AE196: =T196*AE$8826 -> 6216.384758 | AF196: =U196*AF$8826 -> 6924.851132 | AG196: =V196*AG$8826 -> 18287.34684 | AH196: =W196*AH$8826 -> 616.5223264 | AI196: =SUM(AA196:AH196) -> 124205.3233
A197: 2004 | B197: 1 | C197: 9 | D197: 3 | E197: 0.05037515971 | F197: 0.03484434539 | G197: 0.00203851515 | H197: 9.339100533e-06 | I197: 0.003292786013 | J197: 0.006776254114 | K197: 0.01267618792 | L197: 0.01964332432 | M197: 0.0006529150295 | N197: 0.1303088267 | O197: 50375.15971 | P197: 34844.34539 | Q197: 2038.51515 | R197: 9.339100533 | S197: 3292.786013 | T197: 6776.254114 | U197: 12676.18792 | V197: 19643.32432 | W197: 652.9150295 | X197: 130308.8267 | AA197: 49431.3164 | AB197: 39409.35457 | AC197: 1582.313512 | AD197: 7.736103451 | AE197: 6076.13142 | AF197: 6638.678072 | AG197: 17651.00447 | AH197: 616.5223264 | AI197: 121413.0569
A198: 2004 | B198: 1 | C198: 9 | D198: 4 | E198: 0.05070342649 | F198: 0.03459300832 | G198: 0.00203851515 | H198: 9.339100533e-06 | I198: 0.003316121329 | J198: 0.006847200573 | K198: 0.01287323136 | L198: 0.01848617118 | M198: 0.0006529150295 | N198: 0.1295199285 | O198: 50703.42649 | P198: 34593.00832 | Q198: 2038.51515 | R198: 9.339100533 | S198: 3316.121329 | T198: 6847.200573 | U198: 12873.23136 | V198: 18486.17118 | W198: 652.9150295 | X198: 129519.9285 | AA198: 49753.43267 | AB198: 39173.74686 | AC198: 1582.313512 | AD198: 7.736103451 | AE198: 6139.74769 | AF198: 6741.872185 | AG198: 16611.21534 | AH198: 616.5223264 | AI198: 120626.5867
A199: 2004 | B199: 1 | C199: 9 | D199: 5 | E199: 0.05066150848 | F199: 0.03525851723 | G199: 0.00203851515 | H199: 9.339100533e-06 | I199: 0.003373978741 | J199: 0.00707603275 | K199: 0.01283201832 | L199: 0.01950734084 | M199: 0.0006529150295 | N199: 0.1314101656 | O199: 50661.50848 | P199: 35258.51723 | Q199: 2038.51515 | R199: 9.339100533 | S199: 3373.978741 | T199: 7076.03275 | U199: 12832.01832 | V199: 19507.34084 | W199: 652.9150295 | X199: 131410.1656 | AA199: 49712.30005 | AB199: 39921.24409 | AC199: 1582.313512 | AD199: 7.736103451 | AE199: 6344.936923 | AF199: 6720.2884 | AG199: 17528.81309 | AH199: 616.5223264 | AI199: 122434.1545
A200: 2004 | B200: 1 | C200: 9 | D200: 6 | E200: 0.05470680436 | F200: 0.03639130638 | G200: 0.00203851515 | H200: 9.339100533e-06 | I200: 0.003424931493 | J200: 0.007399639688 | K200: 0.01271391528 | L200: 0.01909130087 | M200: 0.0006529150295 | N200: 0.1364286674 | O200: 54706.80436 | P200: 36391.30638 | Q200: 2038.51515 | R200: 9.339100533 | S200: 3424.931493 | T200: 7399.639688 | U200: 12713.91528 | V200: 19091.30087 | W200: 652.9150295 | X200: 136428.6674 | AA200: 53681.80212 | AB200: 41144.47464 | AC200: 1582.313512 | AD200: 7.736103451 | AE200: 6635.108786 | AF200: 6658.436362 | AG200: 17154.96988 | AH200: 616.5223264 | AI200: 127481.3637
... 2025 more rows

Sheet Input to CA model
A2: Feed into OEB Cost Allocation Model (version 50) sheet "I6 Customer Data", row 27 | H2: ???? - Description not accurate ???
D3: 1 | E3: 2 | F3: 3 | G3: 4 | H3: 6 | I3: 7 | J3: 8 | K3: 9 | L3: 10 | M3: 11 | N3: 12 | O3: 13 | P3: 14 | Q3: 15 | R3: 16 | S3: 17 | T3: 18 | U3: 19 | V3: 20
B4: ID | C4: Total | D4: Residential | E4: GS>50-1000kW | F4: Street Lighting | G4: Sentinel Lighting | H4: Intermediate Use 1000-5000kW | I4: Large User >5000kW | J4: GS < 50 kW | K4: USL
A6: kWh - 30 year weather normalized amount | C6: =SUM(D6:L6) -> 1107580970 | D6: ='Hourly load shapes by class'!AA8824 -> 483663532.3 | E6: ='Hourly load shapes by class'!AB8824 -> 365803341.1 | F6: ='Hourly load shapes by class'!AC8824 -> 6898975.299 | G6: ='Hourly load shapes by class'!AD8824 -> 33729.84318 | H6: ='Hourly load shapes by class'!AE8824 -> 66360780.74 | I6: ='Hourly load shapes by class'!AF8824 -> 44988087.02 | J6: ='Hourly load shapes by class'!AG8824 -> 137144452.3 | K6: ='Hourly load shapes by class'!AH8824 -> 2688071.782 | X6: Actually current forecast, not "kWh - 30 year weather normalized amount".
X7: This doesn't feed anything.
A9: Feed into OEB Cost Allocation Model sheet (version 50) "I8 Demand Data", row 40, 45, 50, 55, 61 and 67
D10: 1 | E10: 2 | F10: 3 | G10: 4 | H10: 6 | I10: 7 | J10: 8 | K10: 9
A11: Customer Classes | C11: Total | D11: Residential | E11: GS>50-1000kW | F11: Street Lighting | G11: Sentinel Lighting | H11: Intermediate Use 1000-5000kW | I11: Large User >5000kW | J11: GS < 50 kW | K11: USL
A13: CO-INCIDENT PEAK (kW)
A15: 1 CP
A16: Total Sytem CP | B16: DCP1 | C16: =SUM(D16:L16) -> 201514.8563 | D16: ='Hourly load shapes by class'!AA8819 -> 104061.1428 | E16: ='Hourly load shapes by class'!AB8819 -> 59733.99269 | F16: ='Hourly load shapes by class'!AC8819 -> 1582.313512 | G16: ='Hourly load shapes by class'!AD8819 -> 7.736103451 | H16: ='Hourly load shapes by class'!AE8819 -> 7234.795542 | I16: ='Hourly load shapes by class'!AF8819 -> 7426.862034 | J16: ='Hourly load shapes by class'!AG8819 -> 20851.49136 | K16: ='Hourly load shapes by class'!AH8819 -> 616.5223264
A18: 4 CP
A19: Total Sytem CP | B19: DCP4 | C19: =SUM(D19:L19) -> 771345.2125 | D19: ='Hourly load shapes by class'!AA8820 -> 400185.109 | E19: ='Hourly load shapes by class'!AB8820 -> 231132.9767 | F19: ='Hourly load shapes by class'!AC8820 -> 4797.356851 | G19: ='Hourly load shapes by class'!AD8820 -> 23.45480122 | H19: ='Hourly load shapes by class'!AE8820 -> 33892.81596 | I19: ='Hourly load shapes by class'!AF8820 -> 22156.42028 | J19: ='Hourly load shapes by class'!AG8820 -> 77287.86809 | K19: ='Hourly load shapes by class'!AH8820 -> 1869.210863
A21: 12 CP
A22: Total Sytem CP | B22: DCP12 | C22: =SUM(D22:L22) -> 2092645.019 | D22: ='Hourly load shapes by class'!AA8821 -> 1054856.547 | E22: ='Hourly load shapes by class'!AB8821 -> 632854.821 | F22: ='Hourly load shapes by class'!AC8821 -> 10758.81389 | G22: ='Hourly load shapes by class'!AD8821 -> 52.60101532 | H22: ='Hourly load shapes by class'!AE8821 -> 101746.393 | I22: ='Hourly load shapes by class'!AF8821 -> 70975.25701 | J22: ='Hourly load shapes by class'!AG8821 -> 217208.5911 | K22: ='Hourly load shapes by class'!AH8821 -> 4191.99414
A24: NON CO_INCIDENT PEAK (kW)
A26: 1 NCP
A27: Classification NCP from Load Data Provider | B27: DNCP1 | C27: =SUM(D27:L27) -> 225358.736 | D27: ='Hourly load shapes by class'!AA8802 -> 110938.449 | E27: ='Hourly load shapes by class'!AB8802 -> 67618.78455 | F27: ='Hourly load shapes by class'!AC8802 -> 1618.667525 | G27: ='Hourly load shapes by class'!AD8802 -> 7.91384219 | H27: ='Hourly load shapes by class'!AE8802 -> 11000.76354 | I27: ='Hourly load shapes by class'!AF8802 -> 7990.080682 | J27: ='Hourly load shapes by class'!AG8802 -> 25553.38989 | K27: ='Hourly load shapes by class'!AH8802 -> 630.6870673
A29: 4 NCP
A30: Classification NCP from Load Data Provider | B30: DNCP4 | C30: =SUM(D30:L30) -> 848844.0459 | D30: ='Hourly load shapes by class'!AA8803 -> 417963.9334 | E30: ='Hourly load shapes by class'!AB8803 -> 247120.5168 | F30: ='Hourly load shapes by class'!AC8803 -> 6439.120345 | G30: ='Hourly load shapes by class'!AD8803 -> 31.48156212 | H30: ='Hourly load shapes by class'!AE8803 -> 42203.75935 | I30: ='Hourly load shapes by class'!AF8803 -> 31653.21018 | J30: ='Hourly load shapes by class'!AG8803 -> 100923.1274 | K30: ='Hourly load shapes by class'!AH8803 -> 2508.896893
A32: 12 NCP
A33: Classification NCP from Load Data Provider | B33: DNCP12 | C33: =SUM(D33:L33) -> 2310739.917 | D33: ='Hourly load shapes by class'!AA8804 -> 1118483.708 | E33: ='Hourly load shapes by class'!AB8804 -> 682381.8552 | F33: ='Hourly load shapes by class'!AC8804 -> 19196.07267 | G33: ='Hourly load shapes by class'!AD8804 -> 93.85169432 | H33: ='Hourly load shapes by class'!AE8804 -> 117300.8373 | I33: ='Hourly load shapes by class'!AF8804 -> 93196.66488 | J33: ='Hourly load shapes by class'!AG8804 -> 272607.4941 | K33: ='Hourly load shapes by class'!AH8804 -> 7479.432673
D39: Above Data (Rows 16-33) Automatically Feeds into "DATA 2" Tab of Cost Allocation Model
